Cogmind - Beta 16 @@@ ROGUE MODE // 2025.12.01 @ 22:25:09 Player: Boris Result: Destroyed by MAIN.C with Omega Cannon Performance ------------- Evolutions (9) 4500 Regions Visited (26) 5200 Robots Destroyed (758) 3790 Value Destroyed (45365) 45365 Prototype IDs (140) 2800 Alien Tech Used (5) 1000 Bonus (40931) 40931 TOTAL SCORE: 103586 Bonus ------- Triggered High Security 500 High Alert Combat Kills 22450 Follower Combat Kills 1873 Entered DSFs 500 Network Hubs Disabled 200 Aligned with FarCom 300 Met R17 at Cetus 500 Found Hidden Lab 3000 Met R17 at Research 2000 Scanned by Researcher 500 Destroyed MAIN.C Guards 500 Met MAIN.C 5000 Destroyed MAIN.C Shell 5000 Friendly Fire -1392 Cogmind --------- Core Integrity 0/1600 Matter 300/300 Energy 32/100 System Corruption 15% Temperature Cool (0) Movement Core (250) Ox4 Location -1/Command Parts ------- > --- POWER (2) -------- (None) > --- PROPULSION (6) --- (None) > --- UTILITY (14) ----- Concept Thermoelectric Network Experimental Targeting Computer Experimental Core Analyzer > --- WEAPON (4) ------- Enhanced Nova Cannon > --- INVENTORY (5) ---- Quantum Shading Machine Concept Beam Splitter Concept Beam Splitter Concept Matter Streamer Warp Cannon Peak State ------------ > --- POWER ------------ Experimental Antimatter Reactor Concept Zero-point Core > --- PROPULSION ------- Experimental Armored Exoskeleton Concept Biometal Exoskeleton > --- UTILITY ---------- Concept Phasing Heat Sink Concept Thermoelectric Network Concept Antigrav Storage Unit Long-range IFF Parser Experimental Targeting Computer Concept Countertargeting System Experimental Core Analyzer Experimental Weapon Cycler Concept Cloak Mesh Centrium Medium Armor Plating Concept Beam Splitter Concept Hardlight Director Deep Network Scanner Crosscalibrator > --- WEAPON ----------- Concept Plasma Driver Concept Plasma Driver Concept Rapid Grenade Launcher Concept Deflector Sword > --- INVENTORY -------- Experimental Antimatter Reactor Concept Thermoelectric Network Superbattery Concept NT7 Matterbank Structural Scanner Precision Matter Filter Experimental Kinecellerator Advanced Weapon Cycler Concept Phase Shift Module Graphene Brace Concept Beam Splitter Experimental Shock Absorption System Experimental EM Shield Concept Matter Streamer Transdimensional Reconstructor Subatomic Replicator Concept Disintegration Ray Warp Cannon Concept Heavy Railcannon Concept Heavy Railcannon Concept Tactical Fusion Warhead [Rating: 309] Favorites ----------- Power Quantum Reactor Engine Reinforced Deuterium Engine Power Core Concept Zero-point Core Reactor Quantum Reactor Propulsion Centrium Leg Treads Armored Treads Leg Centrium Leg Wheel Armored Wheel Hover Unit Backup Propulsion I Utility Core Analyzer Device Advanced Sensor Array Storage High-capacity Storage Unit Processor Core Analyzer Hackware Hacking Suite Protection Centrium Medium Armor Plating Weapon Railgun Energy Gun Heavy EM Shotgun Energy Cannon Enhanced Nova Cannon Ballistic Gun Railgun Ballistic Cannon Light Cannon Launcher Concept Rapid Grenade Launcher Special Weapon CPS Tube Impact Weapon Mace Slashing Weapon Concept Deflector Sword Special Melee Weapon Advanced Datajack Build | -11 -10 -10 -10 -9 -8 -8 -8 -8 -6 -5 -5 -4 -4 -4 -4 -4 -4 -4 -3 -3 -3 -2 -2 -2 -1 -1 ------- Run | Yrd Mat Min Exi Min Mat Sto Rec Scr Fac Fac DSF Fac Was Fac Ext Cet Arc Hub Res Arm Lab Res Qua Frg Acc Com Slots Evolved 18 | . . . . . 4 . . . 4 2 . 2 . . . . . . 2 . . 2 . . 2 . Power 1 | . . . . . . . . . . 1 . . . . . . . . . . . . . . . . Propulsion 3 | . . . . . 1 . . . 2 . . . . . . . . . . . . . . . . . Utility 12 | . . . . . 2 . . . 2 1 . 1 . . . . . . 2 . . 2 . . 2 . Weapon 2 | . . . . . 1 . . . . . . 1 . . . . . . . . . . . . . . Parts Attached 385 | 9 9 10 4 . 15 11 1 18 36 1 23 12 2 7 11 7 7 10 7 25 4 16 17 87 4 32 Power 36 | 1 2 1 . . 1 . . 1 2 . 2 1 . 1 2 1 1 . . 4 . . 2 11 1 2 Engine 7 | 1 2 1 . . 1 . . 1 1 . . . . . . . . . . . . . . . . . Core 7 | . . . . . . . . . 1 . 1 1 . . 1 . . . . . . . . 2 1 . Reactor 22 | . . . . . . . . . . . 1 . . 1 1 1 1 . . 4 . . 2 9 . 2 Propulsion 74 | 2 . 1 1 . 4 2 . 6 9 . 3 5 . . 1 3 3 3 . 6 . 4 2 10 . 9 Treads 15 | 2 . 1 1 . 4 2 . 3 1 . . . . . . 1 . . . . . . . . . . Leg 52 | . . . . . . . . 2 5 . 3 5 . . 1 2 3 3 . 6 . 4 2 7 . 9 Wheel 1 | . . . . . . . . 1 . . . . . . . . . . . . . . . . . . Hover 6 | . . . . . . . . . 3 . . . . . . . . . . . . . . 3 . . Flight . | . . . . . . . . . . . . . . . . . . . . . . . . . . . Utility 159 | 3 3 4 2 . 6 2 . 7 14 1 7 3 1 4 3 1 1 5 4 6 1 8 8 48 3 14 Device 84 | 1 1 4 . . 1 . . 4 5 1 6 . 1 2 . . 1 2 1 4 . 6 6 27 3 8 Storage 12 | 2 2 . . . . 1 . . 3 . . . . . . . . . . . . . . 3 . 1 Processor 26 | . . . . . 4 . . 1 4 . . 2 . 1 . . . . 2 . . . 1 9 . 2 Hackware 12 | . . . . . . 1 . 1 1 . . . . . 1 . . 3 . 2 . 2 1 . . . Protection 25 | . . . 2 . 1 . . 1 1 . 1 1 . 1 2 1 . . 1 . 1 . . 9 . 3 Artifact . | . . . . . . . . . . . . . . . . . . . . . . . . . . . Weapon 116 | 3 4 4 1 . 4 7 1 4 11 . 11 3 1 2 5 2 2 2 3 9 3 4 5 18 . 7 Energy Gun 24 | 2 . . 1 . . 4 1 . 4 . 1 2 1 . . . . . . . 1 . . 6 . 1 Energy Cannon 25 | . 1 3 . . 1 1 . 2 . . 2 . . . . . . . 1 3 1 1 5 2 . 2 Ballistic Gun 41 | 1 . . . . 2 1 . . 6 . 8 1 . 1 4 2 1 2 2 5 1 1 . 2 . 1 Ballistic Cannon 10 | . 2 . . . . . . 1 . . . . . . 1 . . . . . . 1 . 3 . 2 Launcher 8 | . . 1 . . . 1 . . . . . . . 1 . . . . . 1 . 1 . 3 . . Special Weapon 1 | . . . . . . . . 1 . . . . . . . . . . . . . . . . . . Impact Weapon 2 | . . . . . 1 . . . 1 . . . . . . . . . . . . . . . . . Slashing Weapon 4 | . 1 . . . . . . . . . . . . . . . . . . . . . . 2 . 1 Piercing Weapon . | . . . . . . . . . . . . . . . . . . . . . . . . . . . Special Melee Weapon 1 | . . . . . . . . . . . . . . . . . 1 . . . . . . . . . Unidentified Prototypes 59 | . . . . . 1 4 . 1 1 . 1 2 . . . 3 . 1 . 1 5 3 1 32 . 3 Corrupted Parts 8 | . . . . . . . . 2 2 . . . . . . . . . . . . . . 4 . . System Corruption 37 | . . . . . . . . 6 3 . . . . . . . . . . . . . . 28 . . Parts Lost 113 | . 1 1 . . . . . 11 2 . 1 . . . 3 . 1 . . 2 . 7 1 35 1 47 Power 14 | . 1 . . . . . . 2 . . . . . . 1 . . . . . . . . 5 1 4 Propulsion 23 | . . . . . . . . 3 2 . . . . . . . 1 . . . . . . 7 . 10 Utility 40 | . . 1 . . . . . 2 . . . . . . . . . . . 1 . 2 . 14 . 20 Weapon 36 | . . . . . . . . 4 . . 1 . . . 2 . . . . 1 . 5 1 9 . 13 Highest Loss Streak 31 | . 1 1 . . . . . 6 2 . 1 . . . 1 . 1 . . 1 . 2 1 9 1 31 To Critical Strikes 3 | . . . . . . . . 2 . . . . . . 1 . . . . . . . . . . . Average Backups 17 | 1 7 9 9 10 9 14 19 18 13 19 19 19 19 19 19 18 18 19 19 19 16 18 19 19 20 20 Power . | . . . 1 1 . . . . . 1 . . . . . . . . . . . 1 . . 1 . Propulsion . | . . 1 . . . 1 1 . . 1 . . . . 1 . . . . . . . . . . 1 Utility 9 | . 2 3 3 4 6 6 8 9 9 12 14 13 12 11 12 11 11 13 13 13 11 12 10 12 12 11 Weapon 5 | . 4 5 5 5 3 6 8 7 3 5 4 6 7 7 6 6 6 5 5 5 5 5 4 3 5 6 Tool/Special . | . . . . . . . . . . . . . . . . . . . . . . . . . . . Unused Backups 54 | . 5 . 2 . 3 2 . 6 3 . 1 1 1 . 1 1 3 . 3 4 . . 6 11 . 1 Power 4 | . 1 . . . 1 . . . . . . . . . . . . . . 1 . . 1 . . . Propulsion 3 | . . . . . . 1 . . . . . . . . . . 1 . . . . . 1 . . . Utility 31 | . 2 . . . 1 . . 6 2 . 1 1 1 . . . 2 . 2 1 . . 1 10 . 1 Weapon 15 | . 2 . 2 . 1 1 . . 1 . . . . . 1 1 . . 1 2 . . 2 1 . . Tool/Special 1 | . . . . . . . . . . . . . . . . . . . . . . . 1 . . . Average Slot Usage (%) 92 | . 97 99 85 85 87 93 88 78 96 94 99 99 100 99 99 99 99 100 99 99 93 97 98 89 83 81 Engine 4 | . 11 14 14 14 9 8 9 8 3 . . . . . . . . . . . . . . . . . Core 1 | . . . . . . . . . 2 5 9 5 5 2 1 3 . . . . . . . . 3 2 Reactor 3 | . . . . . . . . . . . . 5 5 7 7 6 10 10 9 9 9 8 8 7 3 2 Treads 11 | . 28 28 28 28 24 26 27 25 4 5 . . . . . . . . . . . . . . . . Leg 12 | . . . . . . . . . 19 23 28 26 26 26 26 25 25 26 23 22 22 24 24 15 7 9 Device 8 | . 13 13 10 . . . . . 5 5 6 5 9 5 1 9 10 5 7 7 9 15 15 18 33 29 Storage 6 | . 14 14 14 14 9 9 9 8 5 5 5 5 5 5 5 5 5 5 4 4 4 4 4 4 3 5 Processor 15 | . . . . . 17 18 18 18 20 17 17 20 21 21 21 21 21 21 25 21 18 16 12 14 7 8 Hackware 5 | . . . . . . 7 9 1 6 11 8 5 5 5 9 . . 8 6 9 9 11 11 6 3 . Protection 3 | . . . 3 14 9 1 . 6 . . 1 5 . 4 3 5 5 1 . 2 2 1 3 4 3 3 Energy Gun 4 | . 1 . 5 14 9 19 15 1 2 5 . 1 . . . 1 3 . . . . . . 1 . . Energy Cannon 4 | . 2 28 . . . . . 5 . . . . 4 2 . . . 3 1 2 2 5 15 8 8 6 Ballistic Gun 6 | . 1 . . . 8 . . . 14 11 14 18 15 15 19 19 16 17 17 14 13 7 . 3 . . Peak Build Rating 309 | 7 9 12 27 27 47 48 40 56 72 75 95 114 115 114 116 129 128 130 143 158 154 190 198 290 309 309 Average Rating 108 | 5 7 11 15 27 42 43 35 31 58 75 87 107 113 111 110 120 124 124 138 146 147 180 191 211 300 277 On Entrance 99 | . 7 9 12 27 27 46 40 29 22 70 75 92 113 114 110 108 127 128 126 139 155 154 166 195 287 295 Avg Prop Armor Cover (%) 6 | . . . . . . . . 33 9 5 5 . . . . . . . . 3 . 2 3 3 . . Naked Turns . | . . . . . . . . . . . . . . . . . . . . . . . . . . . Heaviest Build 158 | 15 25 26 28 28 44 67 67 83 72 70 88 100 98 102 102 108 111 112 111 138 117 141 154 143 131 158 Greatest Support 186 | 40 40 40 40 40 60 60 60 60 75 75 90 111 108 108 108 119 124 133 130 145 145 186 154 186 158 160 Greatest Overweight (x) 4 | . . . . . . 1 1 1 1 . . 1 . 1 . 1 1 . . 1 . . 1 3 . 4 Average Overweight (x) . | . . . . . . . . . . . . . . . . . . . . . . . . . . . Largest Inventory Capacity 25 | 8 10 10 10 10 10 20 20 20 20 20 20 20 20 20 20 20 20 20 20 20 20 20 20 25 25 25 Average Capacity 18 | 7 9 10 10 10 10 17 20 19 15 20 20 20 20 20 20 20 20 20 20 20 20 20 20 20 25 24 Most Carried 25 | 2 10 10 10 10 10 19 20 20 20 19 20 20 20 20 20 20 20 20 20 20 20 20 20 25 24 25 Average Carried 17 | 1 7 9 9 9 9 14 19 19 13 19 19 19 19 19 19 19 19 19 19 19 16 18 19 19 22 22 Final Capacity 25 | 8 10 10 10 10 10 20 20 5 20 20 20 20 20 20 20 20 20 20 20 20 20 20 20 25 25 5 Final Carried 25 | 2 10 10 10 10 10 18 20 5 20 19 20 19 20 20 20 20 20 20 20 18 20 17 19 25 22 5 Class Distribution -------------------- 25% | Scavenger-Gunner 13% | Hacker-Gunner 12% | Mutant 10% | Commander-Mutant 9% | Commander-Gunner 5% | Gunner 5% | Scavenger-Mutant 4% | Skirmisher 3% | Scavenger-Skirmisher 3% | Hacker-Skirmisher Dominant Class ---------------- Mutant | -10/Materials Mutant | -10/Mines Scavenger-Mutant | -10/Exiles Scavenger-Mutant | -9/Mines Scavenger-Gunner | -8/Materials Mutant | -8/Storage Commander-Gunner | -8/Recycling Commander-Mutant | -8/Scraptown Skirmisher | -6/Factory Hacker-Gunner | -5/Factory Hacker-Skirmisher | -5/DSF Scavenger-Gunner | -4/Factory Gunner | -4/Waste Assassin | -4/Factory Commander-Gunner | -4/Extension Scavenger-Gunner | -4/Cetus Scavenger-Gunner | -4/Archives Scavenger-Skirmisher | -4/Hub_04(d) Scavenger-Skirmisher | -3/Research Scavenger-Gunner | -3/Armory Hacker-Gunner | -3/Lab Hacker-Gunner | -2/Research Hacker-Gunner | -2/Quarantine Scavenger-Gunner | -2/Protoforge Scavenger-Gunner | -1/Access Scavenger-Gunner | -1/Command Resources | -11 -10 -10 -10 -9 -8 -8 -8 -8 -6 -5 -5 -4 -4 -4 -4 -4 -4 -4 -3 -3 -3 -2 -2 -2 -1 -1 ----------- Run | Yrd Mat Min Exi Min Mat Sto Rec Scr Fac Fac DSF Fac Was Fac Ext Cet Arc Hub Res Arm Lab Res Qua Frg Acc Com Matter Collected 22147 | 260 360 174 . 106 550 427 64 717 1176 . 880 496 516 589 1306 386 264 585 666 2451 . 2014 376 2574 989 4221 Remotely 1813 | . . . . . . . . . . . . . . . . . . . . . . . . . 202 1611 Salvage Created 41913 | 107 291 210 153 47 1319 1969 627 1246 1093 . 856 764 1109 482 1238 558 731 727 490 1871 . 3051 1024 7346 1204 13400 Parts 1709 | 8 21 15 11 2 76 122 25 49 42 . 40 27 10 21 72 19 47 35 26 86 . 166 65 312 51 361 Haulers Intercepted 14 | . 2 . . . . 5 1 . 3 . . 1 . . . . . 1 . . . . . . 1 . Recyclers Shooed 8 | . . 1 . . . . 1 . 1 . . 1 . . 2 . . . . . . 2 . . . . Parts Field Recycled . | . . . . . . . . . . . . . . . . . . . . . . . . . . . Retrieved Matter . | . . . . . . . . . . . . . . . . . . . . . . . . . . . Parts Self-Destructed . | . . . . . . . . . . . . . . . . . . . . . . . . . . . Prevented . | . . . . . . . . . . . . . . . . . . . . . . . . . . . Parts Restored 8 | . . . . . . . . . . . . . . . . . . . . . . . . 7 1 . Faulty 8 | . . . . . . . . . . . . . . . . . . . . . . . . 7 1 . Kills | -11 -10 -10 -10 -9 -8 -8 -8 -8 -6 -5 -5 -4 -4 -4 -4 -4 -4 -4 -3 -3 -3 -2 -2 -2 -1 -1 ------- Run | Yrd Mat Min Exi Min Mat Sto Rec Scr Fac Fac DSF Fac Was Fac Ext Cet Arc Hub Res Arm Lab Res Qua Frg Acc Com Combat Hostiles Destroyed 624 | . 4 7 4 1 27 33 8 18 10 . 11 6 5 6 18 6 3 6 6 27 . 27 14 99 14 264 Guns 191 | . 2 . 4 1 26 21 7 7 10 . 11 6 5 3 15 6 3 6 6 21 . 15 . 15 . 1 Cannons 132 | . 2 4 . . . 2 . 11 . . . . . 3 3 . . . . 2 . 8 10 29 7 51 AOE 232 | . . 3 . . . 8 1 . . . . . . . . . . . . . . . . 17 6 197 Classes Destroyed 34 | 2 5 2 1 . 4 3 1 2 1 . . . 1 . 1 . . . 1 . . . . 7 . 3 Worker 25 | . . . . . 1 1 . . 1 . . . . . 1 . . 1 1 . . 5 . 3 . 11 Builder 19 | . 1 . . . 1 3 . . . . . . . 1 1 . . 1 . . . 5 1 2 3 . Tunneler 4 | 1 . . . . . . . . . . . . . 1 1 . . . 1 . . . . . . . Hauler 14 | . 2 . . . . 5 1 . 3 . . 1 . . . . . 1 . . . . . . 1 . Recycler 18 | 1 . . . . . . 2 . 1 . . 1 . . 1 . . . . . . 2 . . 2 8 Carrier 4 | . . . . . . . . . . . . . . . . . . . . . . . . . . 4 Mechanic 8 | . . . . . . 1 . . . . . . . . . . . . . . . . . . . 7 Operator 17 | . 1 . . . . 1 . . . . . . . . 2 . 8 . 2 . . 1 . 1 . 1 Drone 5 | . . . . . . . . . . . . . . . . . . . . . . . . 5 . . Watcher 34 | . 3 . . . 5 1 . . . . . 1 . 1 1 . . 4 . . . 7 1 3 2 5 Swarmer 78 | . . 3 . . 8 10 1 . . . . 2 . . 7 . . . 3 3 . 4 . . 6 31 Cutter 5 | . . . . . . . . . . . . . . . . . . . . . . . . . . 5 Saboteur 8 | . . . . . . . . . . . . . . . . . . . . . . . . 2 . 6 Grunt 174 | . 4 2 3 1 11 10 1 . 3 . 7 . . . 5 . . 1 . 4 . 7 1 23 6 85 Brawler 20 | . . . . . . 1 . . . . . . . . . . . . . . . 1 . 2 . 16 Duelist 22 | . . . . . . 1 . . . . . . . . . . . . . 4 . . . . . 17 Protector 7 | . . . . . . . 1 . . . . . . . . . . . . 1 . . . 1 . 4 Researcher 7 | . . . . . . . . . . . . . . . . . . . . . . . . 7 . . Sentry 59 | . . 2 . . 4 11 5 . 3 . 1 3 . 2 5 . 3 1 1 2 . 2 . 9 2 3 Demolisher 7 | . . . 1 . . . . . . . . . . . . . . . . 1 . . . . . 5 Specialist 23 | . . . . . 2 . . . 1 . 2 . . . . . . . . 7 . . . . . 11 Hunter 57 | . . . . . 1 . . . . . . . . 2 . . . 2 2 . . 5 2 7 . 36 Programmer 81 | . . . . . . . . . 2 . . 1 . 2 . . . 2 . 6 . 8 11 19 . 30 Heavy 4 | . . . . . 1 . . . 1 . 1 . . . . . . . . . . 1 . . . . Q-Series 3 | . . . . . . . . . . . . . . . . . . . . . . . . 3 . . Behemoth 2 | . . . . . . . . . . . . . . . 1 . . . . . . . . . . 1 Compactor 5 | . . . . . . . . . . . . . 5 . . . . . . . . . . . . . Cetus Guard 6 | . . . . . . . . . . . . . . . . 6 . . . . . . . . . . M Guard 2 | . . . . . . . . . . . . . . . . . . . . . . . . . . 2 Hotshot 10 | . . . . . . . . . . . . . . . . . . . . . . . . 10 . . Decapitator 7 | . . . . . . . . . . . . . . . . . . . . . . . . 7 . . Immortal 4 | . . . . . . . . . . . . . . . . . . . . . . . . 4 . . Overlord 1 | . . . . . . . . . . . . . . . . . . . . . . . . 1 . . Combat Programmer 2 | . . . . . . . . . . . . . . . . . . . . . . . . . . 2 Investigator 1 | . . . . . . . . . . . . . . . . . . . . . . . . . . 1 Striker 1 | . . . . . . . . . . . . . . . . . . . . . . . . . . 1 Executioner 8 | . . . . . . . . . . . . . . . . . . . . . . . . . . 8 Alpha 7 2 | . . . . . . . . . . . . . . . . . . . . . . . . 2 . . V-Series 4 | . . . . . . . . . . . . . . . . . . . . . . . . 4 . . Scrapper 11 | . . . . . . . . 11 . . . . . . . . . . . . . . . . . . Elite 7 | . . . . . . . . 7 . . . . . . . . . . . . . . . . . . Thug 1 | . . . . . . 1 . . . . . . . . . . . . . . . . . . . . Savage 1 | . . . . . . . . . . . . . . . . . 1 . . . . . . . . . Butcher 1 | . . . . . . . . . . . . . . . . 1 . . . . . . . . . . Guerrilla 2 | . . . . . . . . . . . . . . . . 1 1 . . . . . . . . . Revision 1 | . . . . . . . . . . . . . . . . . . . 1 . . . . . . . Best Kill Streak 166 | 2 2 3 4 1 6 8 3 17 3 . 4 2 4 3 5 4 5 4 4 5 . 8 3 10 10 166 Combat Bots Only 164 | . 2 3 4 1 5 6 2 17 2 . 4 2 4 3 4 4 2 2 3 5 . 7 3 10 7 164 Max Kills in Single Turn 23 | 1 1 2 1 1 1 2 2 2 2 . 1 2 1 1 4 2 1 2 2 2 . 3 1 4 5 23 Gunslinging 2 | . . . . . . . . 1 . . . . . . 2 . . . . . . 1 . 1 . . Exploded 23 | . . 2 . . . 2 1 . . . . . . . . . . . . . . . . 4 5 23 Melee . | . . . . . . . . . . . . . . . . . . . . . . . . . . . Uniques/NPCs Destroyed 2 | . . . . . . . . 1 . . . . . . . . . . . . . . . . . 1 Triborg (-8/Scraptown) MAIN.C Shell (-1/Command) Combat | -11 -10 -10 -10 -9 -8 -8 -8 -8 -6 -5 -5 -4 -4 -4 -4 -4 -4 -4 -3 -3 -3 -2 -2 -2 -1 -1 -------- Run | Yrd Mat Min Exi Min Mat Sto Rec Scr Fac Fac DSF Fac Was Fac Ext Cet Arc Hub Res Arm Lab Res Qua Frg Acc Com Hostile Shots Fired 2510 | . 13 40 1 4 61 86 9 178 92 . 46 19 . 43 67 28 5 43 13 167 . 253 97 506 22 717 Missed 809 | . 4 4 1 2 17 32 2 27 42 . 21 2 . 15 7 8 1 11 4 54 . 80 29 134 11 301 Deflected 23 | . . . . . . . . . . . . . . . . . . . . . . . . . . 23 Hits 1701 | . 9 36 . 2 44 54 7 151 50 . 25 17 . 28 60 20 4 32 9 113 . 173 68 372 11 416 Melee 22 | . . . . . . . . . . . . . . . . . . . . 2 . . . 14 . 6 Projectile 1679 | . 9 36 . 2 44 54 7 151 50 . 25 17 . 28 60 20 4 32 9 111 . 173 68 358 11 410 AOE 56 | . . . . . . . . . . . . . . . . . . . . 2 . . . 20 . 34 Critical Strikes 119 | . . 1 . . 1 3 . 11 1 . 2 1 . . 3 6 . 4 1 7 . 10 5 37 . 26 Actively Blocked 43 | . . . . . . . . . . . . . . . . . . . . . . . . 28 . 15 Part Disruptions 14 | . . . . . . . . . 1 . 1 . . . . . . 1 . 1 . 2 1 3 . 4 Damage Taken 39972 | . 130 519 . 32 703 845 113 3245 670 . 645 392 . 511 1349 583 104 774 416 2142 . 3348 1699 10187 192 11373 Core 4107 | . 18 31 . . 43 77 6 398 78 . 90 27 . 81 81 57 . 89 25 175 . 303 95 802 . 1631 Absorbed by Shields 1790 | . . . . . . . . 47 . . . . . . . . . . . 203 . 238 34 418 118 732 Reduced by Siege Mode 333 | . . . . . . . . 333 . . . . . . . . . . . . . . . . . . Redirected to Shielding 591 | . . . . . . . . . . . . . . . . . . . . . . . . 591 . . Ignored by Resistances 4011 | . . . . . . . . . . . . . . . . . . . . . . . . 1980 109 1922 Regen/Repaired (Parts) 3570 | . . . . . . 508 . 340 . . . . 11 401 . . . . 445 . . 74 938 195 . 658 Core Remaining (%) 65 | 100 . . . 80 . . . 4 90 . 91 . . . . . . 70 . . 84 . . 8 . . Volleys Fired 1413 | 2 25 17 . . 41 77 11 35 55 . 49 15 27 26 45 17 65 37 22 97 13 126 57 339 17 198 Largest 4 | 2 2 2 . . 1 3 3 3 3 . 3 4 4 4 4 4 4 4 4 4 1 4 3 4 2 4 Hottest 480 | 60 60 136 . . 120 150 150 150 165 . 200 185 190 190 235 181 136 185 140 240 94 272 353 402 280 480 Shots Fired 3000 | 4 50 31 10 6 122 108 35 59 147 . 105 55 84 78 164 68 86 98 80 269 13 234 97 540 27 430 Gun 1755 | 4 18 . 10 6 120 88 35 39 147 . 100 54 61 58 141 68 86 79 78 219 . 130 . 183 . 31 Cannon 1115 | . 32 27 . . 2 8 . 19 . . 5 1 23 20 23 . . 19 1 47 13 96 94 315 25 345 Launcher 129 | . . 4 . . . 12 . . . . . . . . . . . . 1 3 . 8 3 42 2 54 Special 1 | . . . . . . . . 1 . . . . . . . . . . . . . . . . . . Kinetic 1430 | 2 41 . . . 39 . . 17 124 . 91 51 61 58 141 60 28 79 78 219 . 154 . 120 . 67 Thermal 1067 | 2 . 27 10 6 83 13 . 2 20 . 11 4 23 20 23 8 58 19 1 40 . 64 85 238 25 285 Explosive 85 | . . 4 . . . . . . . . . . . . . . . . 1 . . . . 24 2 54 Electromagnetic 390 | . 9 . . . . 95 35 39 3 . 3 . . . . . . . . 10 13 16 12 155 . . Entropic 27 | . . . . . . . . . . . . . . . . . . . . . . . . 3 . 24 Robot Hit Streak 32 | 4 7 6 8 10 27 23 17 18 25 . 13 15 12 13 14 14 25 8 10 15 . 13 19 32 9 25 Robot Miss Streak 7 | . 4 1 1 1 3 2 2 2 3 . 3 2 3 3 7 2 5 2 2 4 . 4 3 5 1 3 Penetration Max 4 | . . . . . . . . 1 1 . 2 1 1 . 2 1 1 1 . 2 . 4 . 1 1 2 Secondary Targets 25 | . . . . . . . . 3 . . 3 . . . 5 3 1 2 . 3 . 4 . 1 . . Max Gunslinging Chain 2 | . . . . . . . . 2 . . 1 . . . 2 1 1 1 . 1 . 1 . 1 . . Autonomous 103 | . . . 10 6 81 6 . . . . . . . . . . . . . . . . . . . . Shots Hit Robots 1889 | 4 31 17 9 5 108 86 26 52 85 . 55 39 50 46 103 55 61 52 52 149 . 123 44 378 14 245 Core Hits 1500 | 4 14 8 4 2 48 70 20 33 40 . 28 20 11 19 49 31 31 29 25 67 . 93 18 250 32 554 Critical Kills 81 | . . . . . . 1 . . 1 . 1 . . . 5 . 5 1 2 14 . 25 1 8 1 16 Critical Parts Destroyed 66 | . . . . . 2 . . . 2 . . . . 1 3 2 2 5 2 16 . 28 . 3 . . Critical Strikes 182 | . 1 . . . 2 1 . 2 3 . 1 . 1 1 9 4 7 6 5 35 . 56 1 25 1 21 Burn 6 | . . . . . . . . . . . . . . . . . . . . . . . . 6 . . Meltdown 25 | . . . . . . . . . . . . . . . 1 . . . . . . . 1 6 1 16 Destroy 130 | . . . . . . . . . 3 . 1 . 1 . 8 4 7 6 5 34 . 55 . 6 . . Blast 13 | . 1 . . . . . . 2 . . . . . . . . . . . . . 1 . 4 . 5 Corrupt 3 | . . . . . . . . . . . . . . . . . . . . 1 . . . 2 . . Smash 4 | . . . . . 2 1 . . . . . . . 1 . . . . . . . . . . . . Sever 1 | . . . . . . . . . . . . . . . . . . . . . . . . 1 . . Melee Attacks 60 | . 10 . . . 9 8 . . 13 . 3 5 . 5 . . 2 . . . . . . 3 . 2 Impact 43 | . . . . . 9 8 . . 13 . 3 5 . 5 . . . . . . . . . . . . Slashing 15 | . 10 . . . . . . . . . . . . . . . . . . . . . . 3 . 2 Piercing . | . . . . . . . . . . . . . . . . . . . . . . . . . . . Sneak Attacks 13 | . 2 . . . 2 1 . . . . . 1 . 2 . . 2 . . . . . . 2 . 1 Combat Hostiles . | . . . . . . . . . . . . . . . . . . . . . . . . . . . Follow-up Attacks . | . . . . . . . . . . . . . . . . . . . . . . . . . . . Damage Inflicted 141120 | 34 599 617 278 126 3118 3195 630 2991 2007 . 1471 974 1385 1287 3324 1575 1583 1633 1524 3539 . 4078 2500 22982 2798 76872 Guns 29356 | 34 125 . 278 116 2639 1325 566 643 1822 . 1471 914 1024 843 2900 1575 1583 1554 1344 2806 . 1132 . 3824 . 838 Cannons 43324 | . 324 352 . . 74 142 . 2309 . . . . 361 303 385 . . 29 . 497 . 2195 2196 11575 1780 20802 Explosions 66918 | . . 247 . . . 1631 45 39 131 . . . . . . . . . 180 236 . 656 304 7330 1018 55101 Melee 1160 | . 135 . . . 372 86 . . . . . 60 . 141 . . . . . . . . . 235 . 131 Ramming 362 | . 15 18 . 10 33 11 19 . 54 . . . . . 39 . . 50 . . . 95 . 18 . . Kinetic 29853 | 12 354 . . . 527 . . 2267 1596 . 1291 866 1024 843 2817 1432 526 1554 1344 2806 . 1891 . 4066 . 4637 Thermal 35311 | 22 . 352 278 116 2186 631 45 81 294 . 163 48 361 303 468 143 1057 29 . 290 . 1248 1874 7215 1780 16327 Explosive 61133 | . . 247 . . . . . . . . . . . . . . . . 180 . . . 112 4652 841 55101 Electromagnetic 12559 | . 95 . . . . 2467 566 643 63 . 17 . . . . . . . . 443 . 844 514 6730 177 . Impact 659 | . . . . . 372 86 . . . . . 60 . 141 . . . . . . . . . . . . Slashing 501 | . 135 . . . . . . . . . . . . . . . . . . . . . . 235 . 131 Piercing . | . . . . . . . . . . . . . . . . . . . . . . . . . . . Entropic 742 | . . . . . . . . . . . . . . . . . . . . . . . . 66 . 676 Highest Corruption 64 | . 3 3 3 3 1 1 2 6 4 . 1 . . 2 . . . 7 . 12 12 17 20 64 1 15 Average Corruption 7 | . 2 3 3 3 1 1 1 5 1 . 1 . . 1 . . . 2 . 6 12 10 11 24 1 5 Corruption Purged 27 | . . . . . . . . . . . . . . 2 . . . . . . . 9 16 . . . Corruption Blocked . | . . . . . . . . . . . . . . . . . . . . . . . . . . . Effects 491 | . 10 19 7 7 7 16 29 4 10 . 1 . . 3 . . . 6 . 32 11 39 53 189 1 47 Message Errors 114 | . 2 5 2 2 1 6 8 . . . 1 . . 1 . . . 2 . 6 4 5 11 51 1 6 Matter Fused 100 | . 2 4 . 1 3 4 8 2 4 . . . . . . . . . . 10 3 4 12 27 . 16 Heat Flow Errors 52 | . . 3 1 2 1 . 3 . 2 . . . . . . . . 2 . 1 1 3 8 24 . 1 Energy Discharges 48 | . 2 . 2 . . 1 3 1 2 . . . . . . . . . . 4 1 5 5 18 . 4 Parts Rejected 3 | . . . . . . . . . . . . . . . . . . . . . . 2 . 1 . . Parts Fused 6 | . . 1 1 . 1 . . . . . . . . . . . . . . . . . 1 2 . . Data Loss (minor) 59 | . 3 4 1 2 . . 3 1 2 . . . . . . . . . . 3 2 5 7 17 . 9 Data Loss (major) 23 | . 1 1 . . 1 . 1 . . . . . . 1 . . . 1 . 2 . 3 4 7 . 1 Misfires 24 | . . 1 . . . 1 2 . . . . . . 1 . . . . . . . 1 4 11 . 3 Alerts 14 | . . . . . . 4 1 . . . . . . . . . . 1 . 2 . 3 . 1 . 2 Misdirections 4 | . . . . . . . . . . . . . . . . . . . . . . 3 . 1 . . Weapon Failures 44 | . . . . . . . . . . . . . . . . . . . . 4 . 5 1 29 . 5 Overload Shots . | . . . . . . . . . . . . . . . . . . . . . . . . . . . Overflow Damage 5217 | . 112 30 . . 136 23 . 64 65 . . . . 121 1 . . 10 . . . 109 204 1069 132 3141 Projectiles 2346 | . 12 . . . . . . 64 . . . . . . 1 . . . . . . 75 204 821 130 1039 Explosions 2475 | . . 30 . . . 23 . . 65 . . . . . . . . . . . . 9 . 244 2 2102 Melee 396 | . 100 . . . 136 . . . . . . . . 121 . . . 10 . . . 25 . 4 . . Knockbacks 33 | . 5 . . . 2 . . 1 . . . . . 2 . . . . . . . 4 . 5 . 14 Impact 4 | . . . . . 1 . . . . . . . . 2 . . . . . . . 1 . . . . Kinetic 28 | . 5 . . . . . . 1 . . . . . . . . . . . . . 3 . 5 . 14 Secondary 1 | . . . . . 1 . . . . . . . . . . . . . . . . . . . . . Self-Inflicted Damage 1456 | . . . . . . 69 43 50 . . . . . . . . . . . 24 . 94 12 717 161 286 Shots 63 | . . . . . . 4 1 1 . . . . . . . . . . . 2 . 9 1 38 3 4 Rammed 17 | . 4 2 . 2 4 2 2 . 1 . . . . . . . . . . . . . . . . . Targets Rammed 33 | . 4 2 . 2 4 2 2 . 7 . . . . . 4 . . 1 . . . 4 . 1 . . Kicked 16 | . . . . . . . . . 6 . . . . . 4 . . 1 . . . 4 . 1 . . Crushed . | . . . . . . . . . . . . . . . . . . . . . . . . . . . Highest Temperature 506 | 20 58 219 102 234 217 307 252 459 241 . 82 266 318 279 250 210 75 273 185 453 316 506 346 359 187 223 Average Temperature 96 | 15 26 94 58 107 52 72 80 212 43 . 24 98 130 82 93 80 29 73 58 102 147 109 117 75 114 131 Received Heat Transfer 3476 | . 72 171 . 18 207 243 18 906 138 . 139 99 . . 189 27 27 30 9 108 . 171 27 664 . 213 Thermoelectric Energy+ 9577 | . . . . . . . . . . . . . . . . . . . . . . . . . 237 9340 Effects 27 | . . . . . 2 1 . 1 . . . . 1 . 1 . . . . 9 1 8 3 . . . Shutdowns 2 | . . . . . . . . . . . . . . . . . . . . 2 . . . . . . Energy Bleed 6 | . . . . . . 1 . 1 . . . . . . 1 . . . . 1 1 1 . . . . Interference 14 | . . . . . 2 . . . . . . . 1 . . . . . . 3 . 5 3 . . . Matter Decay 1 | . . . . . . . . . . . . . . . . . . . . . . 1 . . . . Damage (major) 4 | . . . . . . . . . . . . . . . . . . . . 3 . 1 . . . . Siege Activations 1 | . . . . . . . . 1 . . . . . . . . . . . . . . . . . . Total Turns 29 | . . . . . . . . 29 . . . . . . . . . . . . . . . . . . Longest Duration 29 | . . . . . . . . 29 . . . . . . . . . . . . . . . . . . Martial Activations . | . . . . . . . . . . . . . . . . . . . . . . . . . . . Shielding Activations 3 | . . . . . . . . . . . . . . . . . . . . . . . . . . 3 Total Turns 67 | . . . . . . . . . . . . . . . . . . . . . . . . . . 67 Longest Duration 41 | . . . . . . . . . . . . . . . . . . . . . . . . . . 41 Robots Disrupted 4 | . . . . . . . 1 . . . . . . . . . . . . . . . . 3 . . Combat Hostiles 4 | . . . . . . . 1 . . . . . . . . . . . . . . . . 3 . . Robots Corrupted 51 | . . . . . 1 2 . . . . . . . 2 . . . . . 4 . 5 4 33 . . Combat Hostiles 46 | . . . . . 1 2 . . . . . . . . . . . . . 4 . 4 3 32 . . Parts Fried 126 | . . . . . 1 12 3 5 . . . . . 5 . . . . . 13 . 14 2 71 . . Impact Corruptions 10 | . . . . . 3 . . . . . . . . 5 . . . 1 . . . 1 . . . . Robots Melted 26 | . . . . . . . . . . . . . . . 1 . . . . . . . 1 6 1 17 Combat Hostiles 23 | . . . . . . . . . . . . . . . . . . . . . . . 1 6 1 15 Parts Melted 83 | . . 2 . 1 2 1 . 3 2 . . 2 . 2 . . 4 . . . . 1 5 17 5 36 Heat Transferred 28044 | 50 . 629 333 148 2787 970 50 93 681 . 260 74 444 333 629 222 1628 37 . 222 . 1062 1369 6612 1100 8311 Parts Sabotaged 5 | . . . . . . . . . . . . . . . . . . . . . . . . . . 5 Parts Stolen . | . . . . . . . . . . . . . . . . . . . . . . . . . . . Parts Stripped . | . . . . . . . . . . . . . . . . . . . . . . . . . . . Power Chain Reactions 17 | . . . . . . 11 2 1 . . . . . . . . . . . . . 1 . 1 1 . Alert | -11 -10 -10 -10 -9 -8 -8 -8 -8 -6 -5 -5 -4 -4 -4 -4 -4 -4 -4 -3 -3 -3 -2 -2 -2 -1 -1 ------- Run | Yrd Mat Min Exi Min Mat Sto Rec Scr Fac Fac DSF Fac Was Fac Ext Cet Arc Hub Res Arm Lab Res Qua Frg Acc Com Maximum Alert Level 5 | . . . . . 1 1 . . 1 . 1 1 . . 1 1 1 1 1 3 . 2 2 5 5 5 Low Security (%) 63 | 100 100 100 . 100 91 67 100 . 95 100 83 55 100 100 72 13 65 99 98 31 . 40 18 28 . . Level 1 16 | . . . . . 8 32 . . 4 . 16 44 . . 27 86 34 . 1 12 . 38 74 9 . . Level 2 4 | . . . . . . . . . . . . . . . . . . . . 13 . 21 7 16 . . Level 3 5 | . . . . . . . . . . . . . . . . . . . . 41 . . . 12 . 20 Level 4 4 | . . . . . . . . . . . . . . . . . . . . . . . . 18 89 20 Level 5 2 | . . . . . . . . . . . . . . . . . . . . . . . . 13 10 9 High Security 3 | . . . . . . . . . . . . . . . . . . . . . . . . . . 49 Max Security . | . . . . . . . . . . . . . . . . . . . . . . . . . . . Sterilizations 1 | . . . . . . . . . . . 1 . . . . . . . . . . . . . . . Peak Influence 8949 | 5 57 88 . 30 281 284 128 . 221 1 266 303 101 113 378 380 249 202 206 909 . 549 454 2052 1634 8949 Initial 1230 | . . 18 . . . 46 94 . . 1 . 139 97 . . 168 128 23 93 33 . . 288 173 1230 817 Average 513 | . 7 20 . 2 82 165 12 . 62 . 134 198 30 34 93 278 164 136 112 457 . 242 252 752 1348 4405 Influence Increases 22552 | 10 293 201 80 47 828 1089 263 . 471 . 276 362 66 382 1096 352 262 531 365 1562 . 977 882 2954 508 8695 Destroy 0b10 Robot/C 12580 | . 80 140 80 20 540 680 140 . 200 . 220 140 . 140 540 160 80 200 120 700 . 540 280 2000 280 5300 Destroy 0b10 Robot/NC 800 | 10 35 . . . 35 65 20 . 25 . . 20 . 15 40 10 40 35 20 10 . 100 10 85 40 185 Destroy Leader 1774 | . 30 20 . 10 140 192 . . 76 . 20 54 . 52 42 . . 60 20 144 . 124 62 226 46 456 Allied During Kill 1024 | . . . . . . 8 14 . . . . 25 . 14 348 170 83 45 . 314 . . . 3 . . Successful Hack 888 | . 39 . . . 60 8 21 . 31 . . 14 . 61 30 . . 17 161 82 . 48 179 56 4 77 Select Force Hacks 170 | . 60 . . . . . 60 . . . . . . . . . . 50 . . . . . . . . Disable Machine 1215 | . 15 . . . 15 60 . . 90 . 30 75 . 30 15 . 45 45 . 210 . . 135 255 15 180 Anti-Garrison Action 200 | . . . . . . . . . . . . . . . . . . . . . . . . 200 . . Destroy Structure 3391 | . 4 26 . 2 8 46 8 . 49 . 6 34 66 70 66 12 14 64 44 72 . 120 186 99 123 2272 Partial Spotted 45 | . . . . . . . . . . . . . . . . . . 15 . . . 15 15 . . . Lose Combat Pursuer 465 | . 30 15 . 15 30 30 . . . . . . . . 15 . . . . 30 . 30 15 30 . 225 Influence Decreases 13890 | 10 244 250 52 75 716 959 505 . 467 4 10 349 345 382 794 334 516 418 480 719 907 463 1088 1211 1281 1311 Entered New Map 3621 | . . 31 . 28 . 66 148 . . 3 . 127 182 . . 134 192 43 86 31 907 . 226 135 821 461 Time Decay 7063 | 10 234 219 52 47 416 660 357 . 319 1 . 222 111 332 334 160 254 302 374 488 . 383 542 716 150 380 Lost Part 980 | . 10 . . . . . . . . . 10 . . . 30 . 10 . . 20 . 70 10 340 10 470 Lost Ally 675 | . . . . . . 30 . . . . . . 52 50 130 40 60 73 20 180 . 10 10 20 . . Purge Threat 1551 | . . . . . 300 203 . . 148 . . . . . 300 . . . . . . . 300 . 300 . Squads Dispatched 112 | . 3 . . . 4 5 . . 7 . 1 2 . 3 . . . 8 3 7 . 13 6 24 3 23 Investigation 10 | . 3 . . . 1 . . . . . . . . . . . . 1 . 1 . . 1 2 1 . Extermination 33 | . . . . . . . . . 2 . . 1 . 2 . . . 2 . 4 . 4 5 9 1 3 Reinforcement 34 | . . . . . 3 2 . . 5 . 1 1 . 1 . . . 5 3 1 . 6 . 4 1 1 Assault 31 | . . . . . . 2 . . . . . . . . . . . . . 1 . . . 9 . 19 Garrison 4 | . . . . . . 1 . . . . . . . . . . . . . . . 3 . . . . Intercept . | . . . . . . . . . . . . . . . . . . . . . . . . . . . Searches Triggered . | . . . . . . . . . . . . . . . . . . . . . . . . . . . Unchained Authorized 1 | . . . . . . . . . . . . . . . . . . . . . . 1 . . . . Construction Impeded 8 | . . . . . . 1 . . 1 . . . . 1 . . . 1 . . . 1 . 2 1 . Haulers Reinforced 2 | . . . . . . . . . . . . 1 . . . . . 1 . . . . . . . . Active Scanning Responses . | . . . . . . . . . . . . . . . . . . . . . . . . . . . Cargo Convoy Interrupts . | . . . . . . . . . . . . . . . . . . . . . . . . . . . Stealth | -11 -10 -10 -10 -9 -8 -8 -8 -8 -6 -5 -5 -4 -4 -4 -4 -4 -4 -4 -3 -3 -3 -2 -2 -2 -1 -1 --------- Run | Yrd Mat Min Exi Min Mat Sto Rec Scr Fac Fac DSF Fac Was Fac Ext Cet Arc Hub Res Arm Lab Res Qua Frg Acc Com Distress Signals 39 | . 1 . . 1 4 3 . . 1 . . . . 1 2 2 . 3 6 5 . 6 . . 1 3 Communications Jammed 97 | . . . . . . . . . . . . . . 14 . . . . . 10 . 40 16 17 . . Distress Signals 82 | . . . . . . . . . . . . . . 14 . . . . . 10 . 40 16 2 . . Times Spotted 698 | . 10 7 4 2 36 38 4 32 17 . 15 6 10 9 29 10 23 18 15 42 . 55 18 112 18 168 Peak Tracking Total 95 | . 3 3 1 2 5 5 2 28 5 . 5 2 5 4 4 5 1 4 5 6 . 12 2 6 9 95 Tactical Retreats 28 | . 1 1 . 1 2 2 . 2 . . . . 3 . 1 . . . . 2 . 6 1 2 . 4 ECM-based Alert Blocks 6 | . . . . . . . . . . . . . . . . . . . . . . 6 . . . . Traps | -11 -10 -10 -10 -9 -8 -8 -8 -8 -6 -5 -5 -4 -4 -4 -4 -4 -4 -4 -3 -3 -3 -2 -2 -2 -1 -1 ------- Run | Yrd Mat Min Exi Min Mat Sto Rec Scr Fac Fac DSF Fac Was Fac Ext Cet Arc Hub Res Arm Lab Res Qua Frg Acc Com Traps Triggered 30 | . 2 . . . . 3 . . 2 . 1 1 . 2 3 . . . . 1 . 2 2 11 . . Indirectly 3 | . . . . . . 1 . . . . . . . . . . . . . 1 . . 1 . . . Trap Hack Attempts . | . . . . . . . . . . . . . . . . . . . . . . . . . . . Triggered . | . . . . . . . . . . . . . . . . . . . . . . . . . . . Disarmed 5 | . . . . . . . . . . . . . . . . . . . . . . . . 5 . . Reprogrammed . | . . . . . . . . . . . . . . . . . . . . . . . . . . . Reused . | . . . . . . . . . . . . . . . . . . . . . . . . . . . Traps Extracted . | . . . . . . . . . . . . . . . . . . . . . . . . . . . Installed . | . . . . . . . . . . . . . . . . . . . . . . . . . . . Triggered . | . . . . . . . . . . . . . . . . . . . . . . . . . . . Machines | -11 -10 -10 -10 -9 -8 -8 -8 -8 -6 -5 -5 -4 -4 -4 -4 -4 -4 -4 -3 -3 -3 -2 -2 -2 -1 -1 ---------- Run | Yrd Mat Min Exi Min Mat Sto Rec Scr Fac Fac DSF Fac Was Fac Ext Cet Arc Hub Res Arm Lab Res Qua Frg Acc Com Machines Disabled 88 | . 1 . . . 1 4 . . 6 . 2 5 . 2 2 . 3 3 . 14 1 . 9 22 1 12 Max in Single Turn 4 | . 1 . . . 1 1 . . 4 . 1 2 . 1 1 . 1 1 . 1 1 . 1 2 1 2 Garrison Access 5 | . . . . . . 1 . . . . . . . . . . . . 1 . . . 1 1 1 . Network Hub 1 | . . . . . . . . . . . . . . . . . . 1 . . . . . . . . Machines Repaired . | . . . . . . . . . . . . . . . . . . . . . . . . . . . Machines Dismantled . | . . . . . . . . . . . . . . . . . . . . . . . . . . . Machines Sabotaged 1 | . . . . . . . . . . . . . . . . . . 1 . . . . . . . . Overloaded Fab Kills . | . . . . . . . . . . . . . . . . . . . . . . . . . . . Hacking | -11 -10 -10 -10 -9 -8 -8 -8 -8 -6 -5 -5 -4 -4 -4 -4 -4 -4 -4 -3 -3 -3 -2 -2 -2 -1 -1 --------- Run | Yrd Mat Min Exi Min Mat Sto Rec Scr Fac Fac DSF Fac Was Fac Ext Cet Arc Hub Res Arm Lab Res Qua Frg Acc Com Machines Accessed 141 | . 10 . 2 . 11 12 10 . 5 2 . 6 . 9 14 . . 4 8 8 . 6 14 11 6 3 Terminals 99 | . 8 . . . 8 7 6 . 3 2 . 4 . 7 14 . . 4 2 5 . 4 10 8 5 2 Fabricators 4 | . . . . . . . . . . . . 1 . . . . . . 1 2 . . . . . . Repair Stations 11 | . . . . . 1 2 . . 1 . . . . 1 . . . . 1 . . 1 2 1 . 1 Recycling Units 13 | . 2 . . . 2 2 4 . . . . 1 . . . . . . 1 1 . . . . . . Scanalyzers 7 | . . . . . . . . . 1 . . . . 1 . . . . 2 . . 1 1 1 . . Garrison Access 5 | . . . . . . 1 . . . . . . . . . . . . 1 . . . 1 1 1 . Total Hacks 524 | . 47 . 2 . 40 31 38 . 16 4 . 13 . 24 38 . . 9 36 35 . 36 72 50 18 15 Successful 296 | . 27 . 2 . 21 26 17 . 7 1 . 6 . 18 22 . . 4 16 22 . 21 45 27 7 7 Failed 226 | . 20 . . . 19 5 20 . 9 3 . 7 . 5 16 . . 5 20 13 . 15 27 23 11 8 Catastrophic 29 | . 1 . . . 2 . 1 . 3 1 . 3 . . 2 . . . 8 2 . . 3 3 . . Database Lockouts 2 | . . . . . . . 1 . . . . . . 1 . . . . . . . . . . . . Manual 250 | . 42 . 1 . 27 14 26 . 3 . . 4 . 14 19 . . 3 9 18 . 9 37 19 . 5 Terminals 378 | . 43 . . . 32 16 26 . 8 4 . 8 . 18 38 . . 9 12 24 . 21 57 35 16 11 Fabricators 14 | . . . . . . . . . . . . 4 . . . . . . 2 8 . . . . . . Repair Stations 58 | . . . . . 1 10 . . 4 . . . . 3 . . . . 5 . . 8 12 11 . 4 Recycling Units 33 | . 4 . . . 7 4 12 . . . . 1 . . . . . . 2 3 . . . . . . Scanalyzers 30 | . . . . . . . . . 4 . . . . 3 . . . . 12 . . 7 2 2 . . Garrison Access 9 | . . . . . . 1 . . . . . . . . . . . . 3 . . . 1 2 2 . Terminal Hacks 113 | . 7 . 2 . 7 5 3 . 3 1 . 2 . 5 14 . . 3 3 9 . 7 19 14 6 3 Record 4 | . . . 1 . . . . . . . . . . . . . . . . . . . . 3 . . Part Schematic 4 | . . . . . . . 1 . . . . . . . 1 . . . . 1 . . 1 . . . Robot Analysis 11 | . 4 . . . 2 . . . . . . . . . . . . . . 1 . . 1 3 . . Prototype ID Bank 5 | . . . . . . . 1 . . . . . . . 1 . . . . 1 . . 2 . . . Open Door 12 | . . . . . . 1 . . . . . . . 1 5 . . . . 1 . 1 . . 3 . Open DSF 1 | . . . . . . . . . . 1 . . . . . . . . . . . . . . . . Level Access Points 1 | . . . . . . . . . . . . . . . . . . 1 . . . . . . . . Branch Access Points 4 | . . . . . . . . . . . . 1 . 1 . . . . 1 . . 1 . . . . Emergency Access Points 1 | . . . . . . . . . . . . . . . . . . . . . . . . . . 1 Machine Index 4 | . . . . . 1 . . . . . . . . 1 . . . . . 1 . 1 . . . . Terminal Index 7 | . 1 . . . . . 1 . . . . . . . . . . . 1 1 . 1 1 . 1 . Repair Station Index 2 | . . . . . . 1 . . . . . . . . . . . . . . . . . . . 1 Alert Level 10 | . . . . . . . . . . . . . . 1 1 . . . 1 1 . 1 4 . . 1 Unreport Threat 12 | . . . . . 2 2 . . 2 . . . . . 2 . . . . . . . 2 . 2 . Locate Traps 8 | . . . . . . 1 . . . . . 1 . . 3 . . . . . . . 1 2 . . Disarm Traps 1 | . . . . . . . . . . . . . . . . . . . . . . . . 1 . . Security Status 1 | . . . . . . . . . . . . . . . . . . . . . . . 1 . . . Recall Extermination 4 | . . . . . . . . . . . . . . . . . . . . . . 1 2 1 . . Hauler Manifests 5 | . 1 . . . 1 . . . 1 . . . . 1 1 . . . . . . . . . . . Registered Components 1 | . . . . . . . . . . . . . . . . . . . . . . . 1 . . . Registered Prototypes 2 | . . . . . . . . . . . . . . . . . . . . . . 1 1 . . . Zone Layout 11 | . 1 . . . 1 . . . . . . . . . . . . 2 . 2 . . 2 3 . . Proto ID Catalog 2 | . . . 1 . . . . . . . . . . . . . . . . . . . . 1 . . Fabricator Hacks 3 | . . . . . . . . . . . . 1 . . . . . . 1 1 . . . . . . Network Status 3 | . . . . . . . . . . . . 1 . . . . . . 1 1 . . . . . . Repair Station Hacks 35 | . . . . . . 8 . . 3 . . . . 2 . . . . 2 . . 3 7 8 . 2 Scan Component 18 | . . . . . . 4 . . . . . . . 1 . . . . 1 . . 2 4 5 . 1 Repair 14 | . . . . . . 4 . . . . . . . 1 . . . . 1 . . 1 3 3 . 1 Refit 3 | . . . . . . . . . 3 . . . . . . . . . . . . . . . . . Recycling Unit Hacks 14 | . 2 . . . 2 2 5 . . . . . . . . . . . 1 2 . . . . . . Retrieve Components 14 | . 2 . . . 2 2 5 . . . . . . . . . . . 1 2 . . . . . . Scanalyzer 18 | . . . . . . . . . 1 . . . . 2 . . . . 6 . . 7 2 . . . Insert Component 3 | . . . . . . . . . . . . . . . . . . . . . . 1 2 . . . Analyze 2 | . . . . . . . . . . . . . . . . . . . . . . 2 . . . . Retrieve Study 13 | . . . . . . . . . 1 . . . . 2 . . . . 6 . . 4 . . . . Garrison Access Hacks 4 | . . . . . . 1 . . . . . . . . . . . . 1 . . . 1 . 1 . Seal Access 4 | . . . . . . 1 . . . . . . . . . . . . 1 . . . 1 . 1 . Unauthorized Hacks 109 | . 18 . . . 12 10 9 . . . . 3 . 9 8 . . 1 2 10 . 4 16 5 . 2 Terminals 96 | . 16 . . . 12 9 7 . . . . . . 8 8 . . 1 1 9 . 4 16 3 . 2 Track 10 | . 3 . . . 2 . . . . . . . . . . . . . . 2 . . . 2 . 1 Assimilate 11 | . 2 . . . 1 . . . . . . . . 1 . . . . . . . 1 6 . . . Botnet 25 | . 4 . . . 2 2 4 . . . . . . 1 2 . . . 1 2 . 1 4 1 . 1 Operators 8 | . 1 . . . 1 1 . . . . . . . 1 1 . . . . 1 . 1 1 . . . Skim 41 | . 6 . . . 6 6 3 . . . . . . 5 5 . . . . 4 . 1 5 . . . Sabotage 1 | . . . . . . . . . . . . . . . . . . 1 . . . . . . . . Fabricators 4 | . . . . . . . . . . . . 3 . . . . . . 1 . . . . . . . Liberate 1 | . . . . . . . . . . . . 1 . . . . . . . . . . . . . . Fabnet 1 | . . . . . . . . . . . . 1 . . . . . . . . . . . . . . Haulers 2 | . . . . . . . . . . . . 1 . . . . . . 1 . . . . . . . Repair Stations 2 | . . . . . . 1 . . . . . . . 1 . . . . . . . . . . . . Mechanics 2 | . . . . . . 1 . . . . . . . 1 . . . . . . . . . . . . Recycling Units 5 | . 2 . . . . . 2 . . . . . . . . . . . . 1 . . . . . . Recyclers 1 | . . . . . . . . . . . . . . . . . . . . 1 . . . . . . Tunnel 4 | . 2 . . . . . 2 . . . . . . . . . . . . . . . . . . . Scanalyzers 1 | . . . . . . . . . . . . . . . . . . . . . . . . 1 . . Researchers 1 | . . . . . . . . . . . . . . . . . . . . . . . . 1 . . Garrison Access 1 | . . . . . . . . . . . . . . . . . . . . . . . . 1 . . Jam 1 | . . . . . . . . . . . . . . . . . . . . . . . . 1 . . Data Cores Recovered 2 | . . . . . . . . . . . . . . . 1 . . . . 1 . . . . . . Used 1 | . . . . . . . . . . . . . . . . . . . . 1 . . . . . . Hacking Detections 113 | . 9 . . . 11 9 9 . 4 1 . 6 . 7 10 . . 3 7 6 . 5 10 9 4 3 Full Trace Events 14 | . 2 . . . 1 . 8 . . . . . . . . . . . . . . . 1 1 1 . Feedback Events 2 | . . . . . 1 . 1 . . . . . . . . . . . . . . . . . . . Corruption 2 | . . . . . 1 . 1 . . . . . . . . . . . . . . . . . . . Feedback Blocked 1 | . . . . . . . . . . . . . . . . . . . . . . . 1 . . . Robot Schematics Acquired 3 | . . . . . . . . . . . . . . . . . . . . . . . . 3 . . Robots Built . | . . . . . . . . . . . . . . . . . . . . . . . . . . . Authchips . | . . . . . . . . . . . . . . . . . . . . . . . . . . . Time . | . . . . . . . . . . . . . . . . . . . . . . . . . . . Total Robot Build Rating . | . . . . . . . . . . . . . . . . . . . . . . . . . . . Part Schematics Acquired 11 | . . . . . . . 1 . . . . . . . 1 . . . . 1 . 1 1 6 . . Parts Built . | . . . . . . . . . . . . . . . . . . . . . . . . . . . Authchips . | . . . . . . . . . . . . . . . . . . . . . . . . . . . Time . | . . . . . . . . . . . . . . . . . . . . . . . . . . . Total Part Build Rating . | . . . . . . . . . . . . . . . . . . . . . . . . . . . Part Studies Acquired 13 | . . . . . . . . . 1 . . . . 2 . . . . 6 . . 4 . . . . Parts Repaired 14 | . . . . . . 4 . . . . . . . 1 . . . . 1 . . 1 3 3 . 1 Time 541 | . . . . . . 180 . . . . . . . 74 . . . . 36 . . 22 74 119 . 36 Parts Recycled . | . . . . . . . . . . . . . . . . . . . . . . . . . . . Recycled Matter . | . . . . . . . . . . . . . . . . . . . . . . . . . . . Retrieved Matter . | . . . . . . . . . . . . . . . . . . . . . . . . . . . Retrieved Components 45 | . 10 . . . 9 11 12 . . . . . . . . . . . 3 . . . . . . . Parts Scanalyzed 1 | . . . . . . . . . . . . . . . . . . . . . . 1 . . . . Part Schematics Acquired 1 | . . . . . . . . . . . . . . . . . . . . . . 1 . . . . Parts Damaged . | . . . . . . . . . . . . . . . . . . . . . . . . . . . Bothacking | -11 -10 -10 -10 -9 -8 -8 -8 -8 -6 -5 -5 -4 -4 -4 -4 -4 -4 -4 -3 -3 -3 -2 -2 -2 -1 -1 ------------ Run | Yrd Mat Min Exi Min Mat Sto Rec Scr Fac Fac DSF Fac Was Fac Ext Cet Arc Hub Res Arm Lab Res Qua Frg Acc Com Used RIF Installer . | . . . . . . . . . . . . . . . . . . . . . . . . . . . Robots Hacked 6 | . . . . . . . . . . . . . . . . . 2 . 1 1 . 1 . 1 . . Non-combat 1 | . . . . . . . . . . . . . . . . . 1 . . . . . . . . . Combat 5 | . . . . . . . . . . . . . . . . . 1 . 1 1 . 1 . 1 . . Robot Hacks Applied 2 | . . . . . . . . . . . . . . . . . 2 . . . . . . . . . parse_system 1 | . . . . . . . . . . . . . . . . . 1 . . . . . . . . . check_alert 1 | . . . . . . . . . . . . . . . . . 1 . . . . . . . . . Relay Couplers Released 3 | . . . . . . . . . . . . . . . . . . . . . . . . 3 . . Programmers 3 | . . . . . . . . . . . . . . . . . . . . . . . . 3 . . Fabnet Peak Effective % 3 | . . . . . . . . . . . . . . . . . . . 3 3 3 1 1 1 . . Autooverrided 4 | . . . . . . . . . . . . . . . . . . . 1 1 . 1 . 1 . . Robots Rewired 45 | . . . . . . . 19 . . . . . . . 16 . . . . 10 . . . . . . Allies Hacked 1 | . . . . . . . . . . . . . . . . . . . . 1 . . . . . . Hacks Repelled . | . . . . . . . . . . . . . . . . . . . . . . . . . . . Allies | -11 -10 -10 -10 -9 -8 -8 -8 -8 -6 -5 -5 -4 -4 -4 -4 -4 -4 -4 -3 -3 -3 -2 -2 -2 -1 -1 -------- Run | Yrd Mat Min Exi Min Mat Sto Rec Scr Fac Fac DSF Fac Was Fac Ext Cet Arc Hub Res Arm Lab Res Qua Frg Acc Com Total Allies 93 | . . . . . 1 12 19 . . . . 3 18 1 23 . . . 1 11 . 2 1 1 . . Largest Group 29 | . . . . . 1 10 29 28 . . . 3 18 4 14 14 9 4 1 8 . 1 1 . . . Highest-Rated Group 656 | . . . . . 10 173 506 485 . . . 141 656 110 603 603 360 173 30 388 . 64 26 . . . Highest-Rated Ally 159 | . . . . . 10 31 29 29 . . . 47 50 31 159 51 51 51 30 50 . 64 26 . . . Initial Warlord ECA Mod 9 | . . . . . . . . . . . . 9 9 9 9 9 9 9 8 8 8 7 7 7 6 6 Total Orders 87 | . . . . . . 2 29 51 . 2 . . . . . . 2 1 . . . . . . . . STAY 57 | . . . . . . 1 28 26 . . . . . . . . 1 1 . . . . . . . . FOLLOW 28 | . . . . . . 1 1 25 . . . . . . . . 1 . . . . . . . . . EXPLORE 1 | . . . . . . . . . . 1 . . . . . . . . . . . . . . . . RETURN 1 | . . . . . . . . . . 1 . . . . . . . . . . . . . . . . Ally Attacks 502 | . . . . . . 14 . 170 . . . 14 51 4 94 35 15 19 1 84 . . . 1 . . Total Damage 12817 | . . . . . . 199 . 2080 . . . 221 3139 168 2315 931 286 556 21 2856 . . . 45 . . Kills 61 | . . . . . . 2 . 20 . . . 2 6 1 11 4 1 4 . 10 . . . . . . Allies Corrupted 1 | . . . . . . . . . . . . . . 1 . . . . . . . . . . . . Allies Melted . | . . . . . . . . . . . . . . . . . . . . . . . . . . . Intel | -11 -10 -10 -10 -9 -8 -8 -8 -8 -6 -5 -5 -4 -4 -4 -4 -4 -4 -4 -3 -3 -3 -2 -2 -2 -1 -1 ------- Run | Yrd Mat Min Exi Min Mat Sto Rec Scr Fac Fac DSF Fac Was Fac Ext Cet Arc Hub Res Arm Lab Res Qua Frg Acc Com Active Infowar (turns) 18316 | 16 1304 291 . . . . . 329 1493 67 870 478 445 1043 1247 323 548 665 862 1285 337 1307 1553 2335 300 1218 Optics 9249 | . . . . . . . . 329 1493 67 870 478 445 1043 1247 323 548 665 862 69 . . . . . 810 Sensors 8934 | . . . . . . . . . 897 . 628 172 283 904 267 . . 478 659 1077 25 1049 1288 1207 . . IFF 679 | . . . . . . . . . . . . . . . . . . . . . . . . 277 294 108 Terrain 1601 | . . . . . . . . . . . . . . . . . . . 524 300 337 440 . . . . Structural 1057 | . 691 2 . . . . . . . . . . . . . . . . . . . . . 141 95 128 Seismic 1383 | 16 613 289 . . . . . 125 338 . . . . . . . . 2 . . . . . . . . T.N.C. 136 | . . . . . . . . . 136 . . . . . . . . . . . . . . . . . Machine Analysis 235 | . . . . . . . . . 235 . . . . . . . . . . . . . . . . . Cloaking 3660 | . . . . . . . . . . . . . . . . . . . . . . 595 905 958 300 902 Jamming 5859 | . . . . . . . . . . . 177 55 . 59 49 . . 168 . 560 337 1175 1254 2025 . . ECM 282 | . . . . . . . . . . . . . . . . . . . . . . 244 38 . . . Robot Analysis Total 11 | . 4 . . . 2 . . . . . . . . . . . . . . 1 . . 1 3 . . Derelict Logs Recovered 3 | . . 2 . 1 . . . . . . . . . . . . . . . . . . . . . . Drone Launches 2 | . . . . . . . . . . 2 . . . . . . . . . . . . . . . . Drone Recoveries 1 | . . . . . . . . . . 1 . . . . . . . . . . . . . . . . Exploration | -11 -10 -10 -10 -9 -8 -8 -8 -8 -6 -5 -5 -4 -4 -4 -4 -4 -4 -4 -3 -3 -3 -2 -2 -2 -1 -1 ------------- Run | Yrd Mat Min Exi Min Mat Sto Rec Scr Fac Fac DSF Fac Was Fac Ext Cet Arc Hub Res Arm Lab Res Qua Frg Acc Com Turns Passed 31835 | 97 1337 856 471 509 1237 2681 2506 3550 1493 67 870 478 445 1043 1247 323 548 665 862 1456 337 1334 1553 3659 300 1911 Spaces Moved 16466 | 49 672 485 287 307 636 1011 1050 1619 860 48 398 303 279 473 754 161 307 408 487 840 198 670 1068 1898 216 982 Core 267 | 2 . . . . . . . 222 41 . . . . . . . . . . . . . . . . 2 Treads 5905 | 47 672 485 287 307 636 1011 1050 1395 15 . . . . . . . . . . . . . . . . . Legs 10142 | . . . . . . . . 2 675 48 398 303 279 473 754 161 307 408 487 840 198 670 1068 1875 216 980 Wheels . | . . . . . . . . . . . . . . . . . . . . . . . . . . . Hover 152 | . . . . . . . . . 129 . . . . . . . . . . . . . . 23 . . Flight . | . . . . . . . . . . . . . . . . . . . . . . . . . . . Fastest Speed 50 | 50 160 160 160 160 160 166 166 50 50 120 112 108 108 102 102 111 111 120 105 105 105 105 111 107 110 100 Average Speed 140 | 155 160 160 160 160 162 224 209 201 115 120 113 114 108 105 102 111 120 120 109 105 105 111 111 116 110 113 Slowest Speed 315 | 160 160 160 160 160 166 246 246 246 240 120 120 190 108 177 102 183 190 120 120 175 105 112 182 315 110 250 Overloaded Moves . | . . . . . . . . . . . . . . . . . . . . . . . . . . . Propulsion Burnouts . | . . . . . . . . . . . . . . . . . . . . . . . . . . . Robots Hopped . | . . . . . . . . . . . . . . . . . . . . . . . . . . . Potential Cave-ins 5 | . . . . . . . . . . . . . 4 . . . . . . . . 1 . . . . Cave-ins Triggered . | . . . . . . . . . . . . . . . . . . . . . . . . . . . Teleports 2 | . . . . . . . . . . . . . . . . . . . . . . 1 . 1 . . Exploration Rate (%) 56 | 5 95 94 60 71 60 91 99 59 27 4 93 9 97 12 87 64 92 50 19 49 92 23 92 47 7 26 Regions Visited 26 Branch Regions 15 Pre-discovered Areas 25 | . 3 3 1 . 4 5 2 . . . . . . 3 3 . . . . . . . 1 . . . Known Exits Taken 17 | . . . . . 1 1 1 1 1 1 . . . 1 1 1 1 1 1 1 1 1 1 1 . . Unknown Exits Taken 6 | 1 1 1 1 1 . . . . . . . . . . . . . . . . . . . . 1 . Scrap Searched 12 | . . 1 . 2 . . . 9 . . . . . . . . . . . . . . . . . . Spaces Dug 154 | . 3 . . . . 3 . . 15 . 9 2 6 8 1 . . 11 1 10 . 24 21 9 10 21 Terrain Destroyed 1983 | . 3 35 . 2 8 47 7 21 60 . 9 19 28 33 25 2 7 35 21 29 . 46 63 47 44 1392 Melee 21 | . 3 . . . . 3 . . 8 . 2 1 . 3 . . . . . . . . . . . 1 Projectile 539 | . . . . 2 8 2 . 17 11 . 6 18 28 30 24 2 7 35 3 21 . 44 35 47 17 182 AOE 1408 | . . 35 . . . 42 7 4 38 . . . . . . . . . 18 . . . 28 . 27 1209 Terrain Rammed . | . . . . . . . . . . . . . . . . . . . . . . . . . . . Walls Destroyed . | . . . . . . . . . . . . . . . . . . . . . . . . . . . Machines Disabled . | . . . . . . . . . . . . . . . . . . . . . . . . . . . Actions | -11 -10 -10 -10 -9 -8 -8 -8 -8 -6 -5 -5 -4 -4 -4 -4 -4 -4 -4 -3 -3 -3 -2 -2 -2 -1 -1 --------- Run | Yrd Mat Min Exi Min Mat Sto Rec Scr Fac Fac DSF Fac Was Fac Ext Cet Arc Hub Res Arm Lab Res Qua Frg Acc Com Total 23070 | 62 866 532 300 325 794 1305 1336 1856 1220 57 741 389 379 949 1120 275 439 512 772 1225 316 1100 1336 3016 262 1586 Wait 3169 | . 110 3 . 13 61 153 145 139 172 9 209 23 52 411 159 65 35 16 230 108 78 218 124 391 13 232 Move 16442 | 48 671 484 286 306 635 1010 1049 1618 859 47 397 303 278 472 753 160 306 408 486 839 197 669 1067 1897 215 982 Hop . | . . . . . . . . . . . . . . . . . . . . . . . . . . . Pick Up 261 | 2 19 4 2 2 7 10 1 12 28 . 14 2 4 2 7 5 5 4 9 18 8 9 17 50 3 17 Fast Attach 223 | 8 2 1 1 . 6 10 . 7 17 . 5 5 2 9 5 6 7 4 1 8 4 4 11 76 . 24 Attach 167 | . 2 2 . . 2 1 . 14 4 1 5 2 . . 2 4 2 1 6 9 2 9 6 45 4 44 Detach 111 | . 2 1 2 . 2 4 3 5 1 . 3 1 . 2 . 3 2 . 1 6 3 2 3 41 . 24 Swap 547 | 1 8 12 4 . 15 18 1 9 32 . 28 23 11 16 22 4 4 30 11 66 3 51 31 103 7 37 Drop 345 | 1 13 6 5 2 12 10 2 17 32 . 23 10 5 6 11 11 11 12 6 30 8 8 20 63 3 18 Fire 1413 | 2 25 17 . . 41 77 11 35 55 . 49 15 27 26 45 17 65 37 22 97 13 126 57 339 17 198 Melee 60 | . 10 . . . 9 8 . . 13 . 3 5 . 5 . . 2 . . . . . . 3 . 2 Ram . | . . . . . . . . . . . . . . . . . . . . . . . . . . . Kick 15 | . . . . . . . . . 6 . . . . . 4 . . . . . . 4 . 1 . . Crush 17 | . 4 2 . 2 4 2 2 . 1 . . . . . . . . . . . . . . . . . Escape Stasis 31 | . . . . . . 2 . . . . 5 . . . 9 . . . . . . . . 7 . 8 Rewire 269 | . . . . . . . 122 . . . . . . . 103 . . . . 44 . . . . . . Trap . | . . . . . . . . . . . . . . . . . . . . . . . . . . . Miscellaneous . | . . . . . . . . . . . . . . . . . . . . . . . . . . . Route ------- -11/Scrapyard -10/Materials (discovered 5 exits: [*Mat x3] / [*Min] / Sub) -10/Mines (discovered 4 exits: [*Mat x2] / *Exi / *Sub) -10/Exiles (discovered 2 exits: [*Min x2]) -9/Mines -8/Materials (discovered 4 exits: *Fac x2 / *Sto x2) -8/Storage (discovered 2 exits: *Fac / *Rec) -8/Recycling (discovered 2 exits: *Fac / *Scr) -8/Scraptown (discovered 2 exits: *Fac x2) -6/Factory (discovered 3 exits: *Fac / *Low x2) -5/Factory -5/DSF -4/Factory (discovered 4 exits: *Upp x2 / Ext x2) -4/Waste -4/Factory (discovered 7 exits: Res x3 / Upp x2 / *Ext x2) -4/Extension (discovered 2 exits: *Res / *Cet) -4/Cetus (discovered 2 exits: *Res / *Arc) -4/Archives (discovered 3 exits: *Res / *Hub x2) -4/Hub_04(d) (discovered 4 exits: *Res x4) -3/Research (discovered 3 exits: *Arm / Tes x2) -3/Armory (discovered 3 exits: Res x2 / *Lab) -3/Lab -2/Research (discovered 2 exits: *Qua x2) -2/Quarantine (discovered 3 exits: *Acc / *Sec / *Frg) -2/Protoforge -1/Access -1/Command History --------- Turn | Location | Event 13 | -11/Scrapyard | Discovered new exit (range 16) 98 | -11/Scrapyard | Entered Materials 333 | -10/Materials | Build established: Mutant 362 | -10/Materials | Discovered new exit (range 15) 829 | -10/Materials | Discovered new exit (range 10) 967 | -10/Materials | Discovered new exit (range 14) 1108 | -10/Materials | Discovered new exit (range 16) 1190 | -10/Materials | Learned Storage emergency access door positions 1233 | -10/Materials | Learned 2 Storage zone layouts 1289 | -10/Materials | Learned location of 1 exit from Storage 1305 | -10/Materials | Identified exit to Subcaves 1316 | -10/Materials | Learned 2 Storage zone layouts 1336 | -10/Materials | Learned 4 Subcaves zone layouts 1364 | -10/Materials | Learned Storage stockpile data 1435 | -10/Materials | Entered Mines 1466 | -10/Mines | Discovered new exit (range 6) 1510 | -10/Mines | Discovered exit to Subcaves (range 15) 1661 | -10/Mines | Learned location of Mines (-9) 1706 | -10/Mines | Discovered new exit (range 7) 1711 | -10/Mines | Received a Rocket Launcher from a helpful Derelict 1919 | -10/Mines | Learned location of Storage (-8) 2284 | -10/Mines | Deemed a non-threat by the Exiles lab entrance 2284 | -10/Mines | Discovered new exit (range 5) 2291 | -10/Mines | Entered Exiles 2316 | -10/Exiles | Discovered new exit (range 15) 2339 | -10/Exiles | Met 8R-AWN 2363 | -10/Exiles | Met EX-HEX 2406 | -10/Exiles | Met EX-BIN 2423 | -10/Exiles | Aligned with FarCom system 2425 | -10/Exiles | Given EX-Vault access code 2462 | -10/Exiles | Opened EX-Vault 2503 | -10/Exiles | Warned to stay clear of 0b10 Research branches 2527 | -10/Exiles | Exiles lab attacked by MAIN.C 2589 | -10/Exiles | Found AWS/Thermal 2598 | -10/Exiles | Found Gui. Plasma Cannon 2601 | -10/Exiles | Found Superbattery 2612 | -10/Exiles | Build established: Scavenger-Mutant 2699 | -10/Exiles | Learned location of Zion (-6) 2749 | -10/Exiles | Discovered new exit (range 10) 2762 | -10/Exiles | Stole three prototypes: AWS/Thermal, Superbattery, Gui. Plasma Cannon 2762 | -10/Exiles | Entered Mines 2844 | -9/Mines | Learned 4 Materials zone layouts 2979 | -9/Mines | Found a Scrap Suit stashed away for nefarious purposes 3073 | -9/Mines | Assembled infested the area 3078 | -9/Mines | Assisted by a Guerilla fighting off Assembled 3232 | -9/Mines | Discovered new exit (range 14) 3271 | -9/Mines | Entered Materials 3271 | -8/Materials | Evolved 4 slots: Propulsion x1, Utility x2, Weapon x1 3272 | -8/Materials | Identified exit to Factory 3605 | -8/Materials | Discovered new exit (range 6) 3638 | -8/Materials | Identified exit to Storage 3660 | -8/Materials | Build established: Scavenger-Gunner 4052 | -8/Materials | Discovered exit to Factory (range 4) 4057 | -8/Materials | Learned location of 1 exit from Recycling 4256 | -8/Materials | Learned location of 1 exit from Extension 4281 | -8/Materials | Learned Storage non-interactive machine intel 4415 | -8/Materials | Learned Factory non-interactive machine intel 4508 | -8/Materials | Entered Storage 4508 | -8/Storage | Accompanied by 1 ally 4509 | -8/Storage | Identified exit to Recycling 4510 | -8/Storage | FarCom data flow suspended 4514 | -8/Storage | Loaded intel: 26 non-interactive machine locations 4520 | -8/Storage | Met a pair of Derelict thieves 4651 | -8/Storage | AWS/Thermal suddenly broke down 4926 | -8/Storage | Garrison activated, responded to threat 4934 | -8/Storage | Build established: Scavenger-Mutant 5226 | -8/Storage | Repaired Hrd. Medium Armor Plating? 5273 | -8/Storage | Repaired Rnf. Deuterium Engine 5292 | -8/Storage | Repaired Arm. Treads? 5388 | -8/Storage | Repaired Hvy. EM Shotgun 5412 | -8/Storage | Build established: Mutant 5667 | -8/Storage | Learned location of Armory (-3) 5980 | -8/Storage | Learned location of Extension (-4) 6174 | -8/Storage | Learned Storage stockpile data 6270 | -8/Storage | Build established: Gunner 6890 | -8/Storage | Assisted by bots powering up and referring to "LRC-V3" 7166 | -8/Storage | Used back door to open Recycling access 7188 | -8/Storage | Build established: Commander-Gunner 7189 | -8/Storage | Entered Recycling 7189 | -8/Recycling | Accompanied by 10 allies 7190 | -8/Recycling | Identified exit to Factory 7191 | -8/Recycling | Identified exit to Scraptown 8940 | -8/Recycling | Build established: Commander-Mutant 9312 | -8/Recycling | Scanned before Scraplab entrance 9337 | -8/Recycling | Entered Scraplab 9695 | -8/Recycling | Entered Scraptown 9695 | -8/Scraptown | Accompanied by 28 allies 9695 | -8/Scraptown | System corruption cleaned by C-Scrubber 10130 | -8/Scraptown | Visited Shadow of the Wyrm 10154 | -8/Scraptown | Visited Assassins FH 10197 | -8/Scraptown | Visited CR-KLE's Repair Center 10216 | -8/Scraptown | Heard Great Nut preacher, LISTEN AND RECITE! 10302 | -8/Scraptown | Visited Bundlers 11343 | -8/Scraptown | Visited The Evicted 11382 | -8/Scraptown | Visited Fellowship of the Rings 12364 | -8/Scraptown | Build established: Commander-Gunner 12764 | -8/Scraptown | CR-KLE repaired 6 parts 12891 | -8/Scraptown | Attached CPS modules to Triborg. 12892 | -8/Scraptown | Attacked by Scraptown defenders 12892 | -8/Scraptown | Allies destroyed Triborg 12907 | -8/Scraptown | Found Prototype Ballistic Cannon 12915 | -8/Scraptown | Found Tri-treads 12986 | -8/Scraptown | Lost 18 allies 13060 | -8/Scraptown | Core integrity fell below 50% 13065 | -8/Scraptown | Identified Siege Cannon 13095 | -8/Scraptown | Lost 6 parts (1p2n3w) 13109 | -8/Scraptown | Core integrity fell below 20% 13128 | -8/Scraptown | Destroyed 17 combat bots 13138 | -8/Scraptown | System corruption cleaned by C-Scrubber 13140 | -8/Scraptown | Lost 5 parts (1p1n2u1w) 13245 | -8/Scraptown | Entered Factory 13245 | -6/Factory | Evolved 4 slots: Propulsion x2, Utility x2 13246 | -6/Factory | Identified exit to Lower Caves 13247 | -6/Factory | Loaded intel: 211 non-interactive machine locations 13325 | -6/Factory | Build established: Mutant 14663 | -6/Factory | Discovered new exit (range 20) 14700 | -6/Factory | Identified exit to Factory 14738 | -6/Factory | Entered another Factory area 14738 | -5/Factory | Evolved 2 slots: Power x1, Utility x1 14804 | -5/Factory | Identified exit to DSF 14805 | -5/Factory | Entered DSF 14866 | -5/DSF | Additional patrols routed to DSF 15538 | -5/DSF | Sterilization system engaged 15555 | -5/DSF | Discovered new exit (range 21) 15558 | -5/DSF | Ambient heat levels rising (+10) 15573 | -5/DSF | Ambient heat levels rising (+10) 15588 | -5/DSF | Ambient heat levels rising (+10) 15603 | -5/DSF | Ambient heat levels rising (+10) 15618 | -5/DSF | Ambient heat levels rising (+10) 15633 | -5/DSF | Ambient heat levels rising (+10) 15648 | -5/DSF | Ambient heat levels rising (+10) 15663 | -5/DSF | Ambient heat levels rising (+10) 15674 | -5/DSF | Identified exit to Factory 15675 | -5/DSF | Entered Factory 15675 | -4/Factory | Evolved 2 slots: Utility x1, Weapon x1 15712 | -4/Factory | Discovered new exit (range 20) 15962 | -4/Factory | Identified exit to Upper Caves 16023 | -4/Factory | Identified exit to Extension 16153 | -4/Factory | Sucked down chute 16153 | -4/Factory | Entered Waste 16167 | -4/Waste | Spotted C-40 Crusher 16169 | -4/Waste | Spotted C-40 Crusher 16179 | -4/Waste | Spotted C-40 Crusher 16210 | -4/Waste | Spotted C-40 Crusher 16219 | -4/Waste | Spotted C-40 Crusher 16272 | -4/Waste | Destroyed C-40 Crusher 16277 | -4/Waste | Spotted C-40 Crusher 16368 | -4/Waste | Warlord forces began an assault 16416 | -4/Waste | Destroyed C-40 Crusher 16420 | -4/Waste | Lost 10 allies 16434 | -4/Waste | Destroyed C-40 Crusher 16439 | -4/Waste | Destroyed C-40 Crusher 16456 | -4/Waste | Destroyed C-40 Crusher 16554 | -4/Waste | Discovered new exit (range 12) 16579 | -4/Waste | Identified exit to Factory 16598 | -4/Waste | Entered Factory 16598 | -4/Factory | Accompanied by 3 allies 16772 | -4/Factory | Repaired Centrium Leg 16912 | -4/Factory | Build established: Skirmisher 17026 | -4/Factory | Central database locked down 17090 | -4/Factory | Lost 3 allies 17276 | -4/Factory | Identified exit to Research 17349 | -4/Factory | Learned location of 1 exit from Proximity Caves 17414 | -4/Factory | Learned location of 1 exit from Upper Caves 17471 | -4/Factory | Build established: Assassin 17508 | -4/Factory | Learned location of Testing (-3) 17582 | -4/Factory | Learned location of Quarantine (-2) 17632 | -4/Factory | Learned Quarantine garrison access intel 17641 | -4/Factory | Entered Extension 18216 | -4/Extension | Rescued A7 18368 | -4/Extension | Spotted B-86 Titan 18390 | -4/Extension | Spotted B-86 Titan 18396 | -4/Extension | Allies destroyed B-86 Titan 18408 | -4/Extension | Build established: Commander-Gunner 18415 | -4/Extension | Extracted ID and sensor layout for unrecognized location from A7's data core 18429 | -4/Extension | Destroyed B-86 Titan 18453 | -4/Extension | Lost 7 allies 18483 | -4/Extension | Rescued a captive Derelict 18484 | -4/Extension | Rescued a captive Derelict 18597 | -4/Extension | Rescued a captive Derelict 18662 | -4/Extension | Rescued a captive Derelict 18691 | -4/Extension | Learned Research emergency access door positions 18698 | -4/Extension | Rescued a captive Derelict 18699 | -4/Extension | Rescued a captive Derelict 18711 | -4/Extension | Learned Factory stockpile data 18722 | -4/Extension | Learned location of 1 exit from Quarantine 18723 | -4/Extension | Learned Research security intel 18724 | -4/Extension | Learned Quarantine security intel 18725 | -4/Extension | Learned 4 Research zone layouts 18732 | -4/Extension | Learned Research trap positions 18748 | -4/Extension | Learned location of Cetus (-4) 18775 | -4/Extension | Learned 8 Quarantine zone layouts 18815 | -4/Extension | Discovered new exit (range 6) 18822 | -4/Extension | Identified exit to Cetus 18888 | -4/Extension | Entered Cetus 18888 | -4/Cetus | Accompanied by 14 allies 18907 | -4/Cetus | Spotted Cetus Guard 18909 | -4/Cetus | Spotted Cetus Guard 18909 | -4/Cetus | Spotted Cetus Guard 18913 | -4/Cetus | Spotted Cetus Guard 18925 | -4/Cetus | Allies destroyed Cetus Guard 18930 | -4/Cetus | Destroyed Cetus Guard 18933 | -4/Cetus | Destroyed Cetus Guard 18936 | -4/Cetus | Allies destroyed Cetus Guard 19005 | -4/Cetus | Discovered new exit (range 21) 19065 | -4/Cetus | Spotted Cetus Guard 19066 | -4/Cetus | Spotted Cetus Guard 19067 | -4/Cetus | Spotted Cetus Guard 19074 | -4/Cetus | Destroyed Cetus Guard 19074 | -4/Cetus | Spotted Cetus Guard 19080 | -4/Cetus | Destroyed Cetus Guard 19089 | -4/Cetus | Destroyed Cetus Guard 19091 | -4/Cetus | Destroyed Cetus Guard 19095 | -4/Cetus | Discovered exit to Research (range 22) 19108 | -4/Cetus | Met Revision 17 19182 | -4/Cetus | Identified exit to Archives 19196 | -4/Cetus | Build established: Scavenger-Gunner 19211 | -4/Cetus | Entered Archives 19211 | -4/Archives | Accompanied by 9 allies 19271 | -4/Archives | Lost 4 allies 19326 | -4/Archives | Discovered new exit (range 22) 19331 | -4/Archives | Discovered new exit (range 20) 19361 | -4/Archives | Discovered exit to Research (range 22) 19429 | -4/Archives | Identified exit to Hub_04(d) 19759 | -4/Archives | Entered Hub_04(d) 19759 | -4/Hub_04(d) | Accompanied by 4 allies 19875 | -4/Hub_04(d) | Lost 4 allies 20361 | -4/Hub_04(d) | Network Hub disabled 20379 | -4/Hub_04(d) | Spotted Lightning 20408 | -4/Hub_04(d) | Spotted Lightning 20409 | -4/Hub_04(d) | Spotted Lightning 20424 | -4/Hub_04(d) | Entered Research 20424 | -3/Research | Evolved 2 slots: Utility x2 20426 | -3/Research | Loaded intel: 95 trap records 20519 | -3/Research | Repaired Centrium Medium Armor Plating? 20576 | -3/Research | Found Fusion Bomb Launcher 20624 | -3/Research | Revision forces began assault on 0b10 20626 | -3/Research | Met up with Revision 17++ 20776 | -3/Research | Build established: Scavenger-Skirmisher 20835 | -3/Research | Identified exit to Armory 20835 | -3/Research | Identified exit to Testing 20846 | -3/Research | Spotted B-86 Titan 21124 | -3/Research | Research terminal network offline 21286 | -3/Research | Entered Armory 21287 | -3/Armory | Met VL-GR5, who suggested a friendly competition 21636 | -3/Armory | Build established: Scavenger-Gunner 21666 | -3/Armory | Found Zero-point Reactor 21814 | -3/Armory | Lost 4 allies 21839 | -3/Armory | Found Gamma Bomb Array 21841 | -3/Armory | Found Gamma Bomb Array 21930 | -3/Armory | Discovered new exit (range 15) 22413 | -3/Armory | Spotted B-86 Titan 22536 | -3/Armory | First assault squad dispatched 22645 | -3/Armory | Discovered new exit (range 20) 22678 | -3/Armory | System corruption reached 10% 22740 | -3/Armory | Discovered new exit (range 2) 22741 | -3/Armory | Identified exit to Lab 22742 | -3/Armory | Entered Lab 22751 | -3/Lab | Discovered new exit (range 9) 22758 | -3/Lab | Identified exit to Research 22762 | -3/Lab | Hidden lab's door opened automatically 22762 | -3/Lab | Sensor layout match revealed 22763 | -3/Lab | Gained access to the hidden lab's interior 22798 | -3/Lab | Found Prototype Energy Gun 22798 | -3/Lab | Identified Hyp. EM Gauss Rifle 22802 | -3/Lab | Found Prototype Energy Cannon 22802 | -3/Lab | Identified Warp Cannon 22808 | -3/Lab | Found Prototype Protection 22811 | -3/Lab | Found Prototype Hackware 22812 | -3/Lab | Identified Exp. Powered Armor 22916 | -3/Lab | Found Alien Artifact 22916 | -3/Lab | Identified Core Expander 22916 | -3/Lab | Installed Core Expander, added new Propulsion slot 22922 | -3/Lab | Found Alien Artifact 22922 | -3/Lab | Identified Integrated Mediator 22922 | -3/Lab | Installed Integrated Mediator, increased core attachment efficiency 22943 | -3/Lab | Build established: Hacker-Gunner 22968 | -3/Lab | Found Alien Artifact 23079 | -3/Lab | Entered Research 23079 | -2/Research | Evolved 2 slots: Utility x2 23080 | -2/Research | Identified Deep Network Scanner 23114 | -2/Research | Identified exit to Quarantine 23328 | -2/Research | Unchained authorized (GL-D0S) 23387 | -2/Research | Repaired Hyp. Railgun 23719 | -2/Research | Spotted B-90 Cyclops 23736 | -2/Research | Spotted B-90 Cyclops 23742 | -2/Research | System corruption reached 10% 23745 | -2/Research | Identified Transdimensional Reconstructor 23745 | -2/Research | Warped through subspace 23884 | -2/Research | Garrison activated, responded to threat 24219 | -2/Research | Destroyed 7 combat bots 24413 | -2/Research | Entered Quarantine 24414 | -2/Quarantine | Identified exit to Section 7 24416 | -2/Quarantine | Loaded intel: 1 garrison access location 24766 | -2/Quarantine | Repaired Centrium Medium Armor Plating 24792 | -2/Quarantine | Repaired Centrium Leg+ 24838 | -2/Quarantine | Found Alien Artifact 24858 | -2/Quarantine | Cryocooling Duct disabled 24873 | -2/Quarantine | Ambient heat levels rising (+20) 24873 | -2/Quarantine | Non-combat units ordered to evacuate 24929 | -2/Quarantine | Found Alien Artifact 24936 | -2/Quarantine | Found Transdimensional Reconstructor 24941 | -2/Quarantine | Found Transdimensional Reconstructor 24944 | -2/Quarantine | Found Transdimensional Reconstructor 25242 | -2/Quarantine | Identified exit to Protoforge 25272 | -2/Quarantine | Learned Research trap positions 25282 | -2/Quarantine | Discovered new exit (range 11) 25293 | -2/Quarantine | Learned location of Section 7 (-2) 25306 | -2/Quarantine | Learned 4 Access zone layouts 25307 | -2/Quarantine | Learned Research trap positions 25317 | -2/Quarantine | Learned Research security intel 25323 | -2/Quarantine | Repaired Imp. Cooling System 25336 | -2/Quarantine | Learned Research stockpile data 25563 | -2/Quarantine | Identified Dimensional Node Initializer 25563 | -2/Quarantine | Identified Subatomic Replicator 25867 | -2/Quarantine | Spotted Fortress 25966 | -2/Quarantine | Entered Protoforge 26052 | -2/Protoforge | Discovered new exit (range 13) 26064 | -2/Protoforge | Identified exit to Access 26068 | -2/Protoforge | Initialized slip node 26282 | -2/Protoforge | Superfortress began startup sequence 26654 | -2/Protoforge | Repaired Lrn. Sensor Array? 26718 | -2/Protoforge | Repaired Broken Quantum Reactor+? 26765 | -2/Protoforge | Repaired Enh. Nova Cannon+? 26971 | -2/Protoforge | Spotted Hotshot 26975 | -2/Protoforge | Spotted Hotshot 26978 | -2/Protoforge | Spotted Hotshot 26979 | -2/Protoforge | Spotted Hotshot 26980 | -2/Protoforge | Spotted Hotshot 26985 | -2/Protoforge | Destroyed Hotshot 26986 | -2/Protoforge | Destroyed Hotshot 26987 | -2/Protoforge | Destroyed Hotshot 26988 | -2/Protoforge | Destroyed Hotshot 26990 | -2/Protoforge | Destroyed Hotshot 27011 | -2/Protoforge | Destroyed 10 combat bots 27025 | -2/Protoforge | Spotted Hotshot 27027 | -2/Protoforge | Spotted Hotshot 27027 | -2/Protoforge | Spotted Hotshot 27028 | -2/Protoforge | Spotted Hotshot 27055 | -2/Protoforge | Spotted Hotshot 27056 | -2/Protoforge | Destroyed Hotshot 27062 | -2/Protoforge | Destroyed Hotshot 27062 | -2/Protoforge | Destroyed Hotshot 27063 | -2/Protoforge | Destroyed Hotshot 27064 | -2/Protoforge | Destroyed Hotshot 27092 | -2/Protoforge | Lost 4 parts (3u1w) 27222 | -2/Protoforge | Destroyed 8 combat bots 27281 | -2/Protoforge | Spotted Overlord 27317 | -2/Protoforge | Core integrity fell below 50% 27318 | -2/Protoforge | Destroyed Overlord 27330 | -2/Protoforge | Found Prototype Device 27330 | -2/Protoforge | Identified Exp. EM Shield 27336 | -2/Protoforge | Lost 5 parts (1p2u2w) 27341 | -2/Protoforge | Found Prototype Processor 27341 | -2/Protoforge | Identified Exp. Targeting Computer 27349 | -2/Protoforge | Found Prototype Device 27349 | -2/Protoforge | Identified Exp. Remote Shield 27355 | -2/Protoforge | Found Adv. Kinecellerator 27410 | -2/Protoforge | Found Prototype Device 27410 | -2/Protoforge | Identified Exp. Trap Extractor 27457 | -2/Protoforge | Scanned by Researcher 27541 | -2/Protoforge | Lost 8 parts (1p2n4u1w) 27549 | -2/Protoforge | Spotted V656-q 27590 | -2/Protoforge | Build established: Scavenger-Gunner 27628 | -2/Protoforge | Destroyed V656-q 27667 | -2/Protoforge | Found Prototype Device 27667 | -2/Protoforge | Identified Exp. EM Disruption Field 27672 | -2/Protoforge | Lost 9 parts (1p4n2u2w) 27672 | -2/Protoforge | Found Exp. Targeting Computer 27689 | -2/Protoforge | Found Prototype Device 27689 | -2/Protoforge | Identified Exp. Kinecellerator 27699 | -2/Protoforge | Found Exp. Core Analyzer 27707 | -2/Protoforge | Found Imp. Powered Armor 27714 | -2/Protoforge | Found Prototype Device 27714 | -2/Protoforge | Identified Exp. Shock Absorption System 27839 | -2/Protoforge | Found Prototype Device 27887 | -2/Protoforge | Core integrity fell below 20% 27933 | -2/Protoforge | Spotted Immortal 27934 | -2/Protoforge | Spotted Immortal 27963 | -2/Protoforge | Spotted Decapitator 27963 | -2/Protoforge | Spotted Decapitator 27963 | -2/Protoforge | Spotted Decapitator 27963 | -2/Protoforge | Spotted Decapitator 27966 | -2/Protoforge | First assault squad dispatched 27973 | -2/Protoforge | Destroyed Immortal 27977 | -2/Protoforge | Destroyed Immortal 27982 | -2/Protoforge | Found Cep. Core Shell 28015 | -2/Protoforge | Found Cep. Biometal Exoskeleton 28044 | -2/Protoforge | System corruption reached 30% 28045 | -2/Protoforge | Destroyed Decapitator 28048 | -2/Protoforge | Destroyed Decapitator 28050 | -2/Protoforge | Destroyed Decapitator 28055 | -2/Protoforge | Destroyed Decapitator 28061 | -2/Protoforge | Found Prototype Slashing Weapon 28061 | -2/Protoforge | Identified Exp. Terror Saw 28069 | -2/Protoforge | Found Exp. Terror Saw 28191 | -2/Protoforge | Found Cep. Core Shell 28197 | -2/Protoforge | Found Faulty Cep. Beam Splitter 28232 | -2/Protoforge | Found Prototype Device 28232 | -2/Protoforge | Identified Exp. Weapon Cycler 28240 | -2/Protoforge | Found Faulty Cep. Hardlight Director 28242 | -2/Protoforge | Found Faulty Cep. Hardlight Director 28255 | -2/Protoforge | Found Corrupted Cep. Beam Splitter 28256 | -2/Protoforge | Identified Crosscalibrator 28259 | -2/Protoforge | Found Corrupted Cep. Phase Shift Module 28304 | -2/Protoforge | Found Prototype Device 28304 | -2/Protoforge | Identified Exp. Thermal Shield 28412 | -2/Protoforge | Destroyed 8 combat bots 28495 | -2/Protoforge | Found Prototype Launcher 28495 | -2/Protoforge | Identified Cep. Tactical Fusion Warhead 28501 | -2/Protoforge | Found Cep. Rapid Grenade Launcher 28521 | -2/Protoforge | Spotted V702-m 28521 | -2/Protoforge | Spotted V162-v 28521 | -2/Protoforge | Spotted V530-y 28610 | -2/Protoforge | Spotted Decapitator 28610 | -2/Protoforge | Spotted Decapitator 28610 | -2/Protoforge | Spotted V821-s 28611 | -2/Protoforge | Spotted V052-b 28622 | -2/Protoforge | Destroyed Decapitator 28624 | -2/Protoforge | Destroyed Decapitator 28634 | -2/Protoforge | Destroyed V052-b 28643 | -2/Protoforge | Destroyed V821-s 28648 | -2/Protoforge | Found Prototype Device 28648 | -2/Protoforge | Identified Exp. Shield Generator 28670 | -2/Protoforge | Found Exp. Kinecellerator 28672 | -2/Protoforge | Found Prototype Device 28672 | -2/Protoforge | Identified Cep. Countertargeting System 28675 | -2/Protoforge | Found Prototype Processor 28675 | -2/Protoforge | Identified Cep. Melee Reflex Suite 28683 | -2/Protoforge | Found Cep. Weapon Articulator 28703 | -2/Protoforge | Found Cep. Countertargeting System 28806 | -2/Protoforge | Forge Plexus network access discovered 28974 | -2/Protoforge | Spotted V444-v 28974 | -2/Protoforge | Spotted V983-k 29013 | -2/Protoforge | Found Cep. Antigrav Storage Unit 29020 | -2/Protoforge | Found Faulty Cep. Matter Streamer 29027 | -2/Protoforge | Found Faulty Cep. Matter Streamer 29030 | -2/Protoforge | Found Cep. NT7 Matterbank 29101 | -2/Protoforge | Spotted Decapitator 29101 | -2/Protoforge | Spotted Decapitator 29112 | -2/Protoforge | Destroyed Decapitator 29140 | -2/Protoforge | Found Cep. Zero-point Core 29144 | -2/Protoforge | Found Cep. Zero-point Core 29208 | -2/Protoforge | Found Exp. Focal Shield 29301 | -2/Protoforge | Spotted V622-i 29301 | -2/Protoforge | Spotted V367-r 29307 | -2/Protoforge | Spotted Immortal 29308 | -2/Protoforge | Spotted Immortal 29320 | -2/Protoforge | Destroyed Immortal 29329 | -2/Protoforge | Destroyed Immortal 29340 | -2/Protoforge | Spotted V775-z 29354 | -2/Protoforge | Destroyed V775-z 29355 | -2/Protoforge | Found Prototype Launcher 29355 | -2/Protoforge | Identified Enh. Gamma Bomb Array 29361 | -2/Protoforge | Found Prototype Ballistic Cannon 29361 | -2/Protoforge | Identified Cep. Helical Railcannon 29367 | -2/Protoforge | Found Cep. Deflector Sword 29370 | -2/Protoforge | Found Cep. Heavy Railcannon 29375 | -2/Protoforge | Found Cep. Disintegration Ray 29380 | -2/Protoforge | Found Cep. Plasma Driver 29396 | -2/Protoforge | Found Faulty Cep. Heavy Railcannon 29401 | -2/Protoforge | Found Faulty Cep. Plasma Driver 29573 | -2/Protoforge | Spotted AP7-3 29573 | -2/Protoforge | Spotted AP7-3 29576 | -2/Protoforge | Destroyed AP7-3 29578 | -2/Protoforge | Destroyed AP7-3 29607 | -2/Protoforge | Found Cep. Thermoelectric Network 29611 | -2/Protoforge | Found Cep. Cloak Mesh 29613 | -2/Protoforge | Warped through subspace to slip node 29616 | -2/Protoforge | Found Faulty Cep. Thermoelectric Network 29625 | -2/Protoforge | Entered Access 29625 | -1/Access | Evolved 2 slots: Utility x2 29763 | -1/Access | Destroyed 7 combat bots 29843 | -1/Access | Destroyed 7 combat bots 29917 | -1/Access | Discovered new exit (range 8) 29925 | -1/Access | Entered Command 29926 | -1/Command | Used Subatomic Replicator to replicate Cep. Plasma Driver 30017 | -1/Command | Repaired Centrium Medium Armor Plating 30104 | -1/Command | Found Unknown Device 30104 | -1/Command | Identified Quantum Capacitor 30345 | -1/Command | Spotted M Guard 30345 | -1/Command | Spotted M Guard 30346 | -1/Command | Spotted Combat Programmer 30383 | -1/Command | Spotted Combat Programmer 30392 | -1/Command | Destroyed Combat Programmer 30399 | -1/Command | Destroyed Combat Programmer 30429 | -1/Command | Destroyed M Guard 30437 | -1/Command | Destroyed M Guard 30437 | -1/Command | All MAIN.C guards destroyed 30452 | -1/Command | Found Prototype Protection 30452 | -1/Command | Identified Hvy. Regenerative Plating 30529 | -1/Command | Spotted B-99 Colossus 30548 | -1/Command | Destroyed B-99 Colossus 30734 | -1/Command | Destroyed 8 combat bots 30806 | -1/Command | High security lockdown imminent 30886 | -1/Command | High security lockdown engaged 30890 | -1/Command | Lost 6 parts (1p4u1w) 30904 | -1/Command | Destroyed 164 combat bots 30957 | -1/Command | Destroyed Executioner 30957 | -1/Command | Spotted Executioner 30957 | -1/Command | Destroyed Executioner 31164 | -1/Command | Destroyed 20 combat bots 31267 | -1/Command | Destroyed 7 combat bots 31308 | -1/Command | Spotted Executioner 31309 | -1/Command | Destroyed Executioner 31310 | -1/Command | System corruption reached 10% 31311 | -1/Command | Destroyed Executioner 31344 | -1/Command | Destroyed 21 combat bots 31437 | -1/Command | Spotted Investigator 31438 | -1/Command | Destroyed Investigator 31505 | -1/Command | Spotted Striker 31509 | -1/Command | Destroyed Striker 31516 | -1/Command | Spotted Executioner 31530 | -1/Command | Destroyed 11 combat bots 31546 | -1/Command | Spotted Executioner 31550 | -1/Command | Destroyed Executioner 31554 | -1/Command | Destroyed Executioner 31556 | -1/Command | Lost 7 parts (1p2n1u3w) 31556 | -1/Command | Spotted Executioner 31557 | -1/Command | Spotted Executioner 31559 | -1/Command | Destroyed Executioner 31563 | -1/Command | Destroyed Executioner 31670 | -1/Command | Found Unknown Protection 31670 | -1/Command | Identified Hvy. Reflective Plating 31726 | -1/Command | 0b10 Conduit disabled 31729 | -1/Command | Met MAIN.C 31757 | -1/Command | Destroyed MAIN.C Shell 31759 | -1/Command | MAIN.C activated Command garrisons 31776 | -1/Command | Core integrity fell below 50% 31831 | -1/Command | Core integrity fell below 20% 31831 | -1/Command | Failed to warp due to unstable space 31836 | -1/Command | Destroyed by MAIN.C with Omega Cannon Last Messages --------------- 31814_ Biometal Leg destroyed. 31814_ Knocked back. 31817_ Myomer Leg+ destroyed. 31817_ Knocked back. 31820_ Centrium Greatsword destroyed. 31820_ Knocked back. 31821_ Acquired 5 matter. 31823_ Biometal Leg destroyed. 31823_ Adv. Visual Processing Unit destroyed. 31823_ Critical hit (Blast). 31823_ Knocked back. 31826_ Cep. Countertargeting System destroyed. 31826_ Adv. Weapon Cycler destroyed. 31826_ Knocked back. 31830_ Cep. Disintegration Ray destroyed. 31830_ Knocked back. 31831_ Warp failed due to unstable space. 31833_ Biometal Leg destroyed. 31833_ Cep. Antigrav Storage Unit destroyed. 31833_ Knocked back. Map ----- +----------------------------------------------------+ | ?????????????????????????????????????????????????? | | ?????????????????????????????????????????????????? | | ?????????????????????????????????????????????????? | | ?????????????????????????????????????????????????? | | ?????????????????????????????????????????????????? | | ?????????????????????????????????????????????????? | | ?????????????????????????????????????????????????? | | ?????????????????????????????????????????????????? | | ?????????????????????????????????????????????????? | | ?????????????????????????????????????????????????? | | ?????????????????????????????????????????????????? | | ?????????????????????????????????????????????????? | | ?????????????????????????????????????????????????? | | ?????????????????????????????????????????????????? | | ?????????????????????????????????????????????????? | | ?????????????????????????????????????????????????? | | ?????????????????????????????????????????????????? | | ?????????????????????????????????????????????????? | | ????????###################??????????????????????? | | ??????"""""" """" #??????????????????????? | | ??????" "" #??????????????????????? | | ????????"" #######################? | | ????????"""" ;% % % #? | | ?????" " """ % % ; % #? | | ?????"" M%% !! ! #? | | ?????????"""""% % @################### #? | | ?????????"""" % % #??????????????????" "?? | | ??????" %#?????????????????#" "## | | ????? % % " #?????????????????# T# | | ?????" """ """""""#?????????????????#+++## | | ??????? """""""""#?????????????????# | | ?????? %"""""""""""#?????????????????# | | ?????? " " " " #?????????????????# | | ?????? " " " " #?????????????????# | | ??????? " "?" """" " #?????????????????# % | | ??????? ""?????? """" #?????????????????# # | | ??????? ????????????" #?????????????????###### | | ????????"???????????????? ???????????????????????? | | ?????????????????????????"???????????????????????? | | ?????????????????????????????????????????????????? | | ?????????????????????????????????????????????????? | | ?????????????????????????????????????????????????? | | ?????????????????????????????????????????????????? | | ?????????????????????????????????????????????????? | | ?????????????????????????????????????????????????? | | ?????????????????????????????????????????????????? | | ?????????????????????????????????????????????????? | | ?????????????????????????????????????????????????? | | ?????????????????????????????????????????????????? | | ?????????????????????????????????????????????????? | +----------------------------------------------------+ Best States ------------- Heat Dissipation 144 Coolant Potential 120 Energy Generation 57 Energy Capacity 2990 Matter Stores 723 Matter Capacity 1050 Sight Range 22 Robot Scan Range 18 Terrain Scan Range 20 Terrain Scan Density 310 ECM Strength 2 Jamming Range 16 Cloak Strength 7 Corruption Containment 12 Armor Coverage 975 Resistance: KI 30 Resistance: TH 75 Resistance: EX 75 Resistance: EM 75 Core Shielding 90 Propulsion Shielding 90 Weapon Shielding 90 Projectile Deflection 15 Weapon Cycling 30 Phase Shifting 25 Evasion (%) 92 Targeting Accuracy 24 Target Analysis 8 Core Analysis 9 Armor Integrity Analysis 30 Recoil Reduction 3 Matter Filtering 50 Energy Filtering 30 Particle Charging 25 Kinecelleration 66 Offensive Hacking 37 Defensive Hacking 24 Item Schematics ----------------- Hcp. Storage Unit | -8/Recycling | Hacked Imp. Armor Integrity Analyzer | -4/Extension | Hacked Adv. Force Field | -3/Armory | Hacked Hyp. Railgun | -2/Research | Scanalyzed Hds. Centrium Leg | -2/Quarantine | Hacked Exp. Transmission Jammer | -2/Protoforge | Archive Cld. Proton Cannon | -2/Protoforge | Archive Ionic Axe | -2/Protoforge | Archive Adv. Energy Well | -2/Protoforge | Archive Exp. Sensor Array | -2/Protoforge | Archive Imp. Matter Neutralizer | -2/Protoforge | Archive Robot Schematics ------------------ A-15 Conveyor | -2/Protoforge | Archive K-01 Serf | -2/Protoforge | Archive G-73 Enforcer | -2/Protoforge | Archive Fabricated ------------ Nothing Repaired ---------- Hrd. Medium Armor Plating | 21% | -8/Storage Rnf. Deuterium Engine | 68% | -8/Storage Arm. Treads | 20% | -8/Storage Hvy. EM Shotgun | 62% | -8/Storage Centrium Leg | 10% | -4/Factory Centrium Medium Armor Plating | 25% | -3/Research Hyp. Railgun | 57% | -2/Research Centrium Medium Armor Plating | 8% | -2/Quarantine Centrium Leg | 24% | -2/Quarantine Imp. Cooling System | 30% | -2/Quarantine Lrn. Sensor Array | 11% | -2/Protoforge Quantum Reactor | 37% | -2/Protoforge | Broken Enh. Nova Cannon | 40% | -2/Protoforge Centrium Medium Armor Plating | 16% | -1/Command Studied --------- Coil Gun | -6/Factory | Hacked Adv. VSS Leg | -4/Factory | Hacked Railgun | -4/Factory | Hacked Centrium Leg | -3/Research | Hacked Myomer Leg | -3/Research | Hacked HERF Cannon | -3/Research | Hacked Quantum Reactor | -3/Research | Hacked Nova Cannon | -3/Research | Hacked Com. HERF Cannon | -3/Research | Hacked Hyp. Railgun | -2/Research | Hacked Enh. Nova Cannon | -2/Research | Hacked Gamma Bomb Array | -2/Research | Hacked Enh. Hardcell Cannon | -2/Research | Hacked Alien Tech Used ----------------- Core Expander Integrated Mediator Transdimensional Reconstructor Dimensional Node Initializer Subatomic Replicator Achievements -------------- Drive-By Hot Goods Morally Flexible Window Shopping Challenges ------------ None Game ------ Seed ForceSuperchargedRocket Manual? 0 Play Time 07:12:26 Cumulative 671.2 hours Start 2025.12.01 @ 13:05:08 End 2025.12.01 @ 22:25:09 Sessions 3 Manual Loads 0 Difficulty Rogue Special Mode None Game No. 223 Rogue 207 Adventurer 15 Explorer 1 Win Type - Total 39 Types 10/3/10/2/2/0/6/3/1/2 Lore% 94 Gallery% 89 Achievement% 66 Wizard Run 0 Options --------- Layout 0 ASCII 0 Keyboard 0 Movement Numpad Keybinds 0 Fullscreen 1 Font 18/SmallcapsGlow Map View 76x50 Zoom Use 0% Tactical HUD 1 Map Filters NONE Filters NONE Steam 1 RUN: 940fd30d-691a-4997-8242-206542384a4d